Workbook

Sheet SEK - Safesprings tjänster 2023
B5: Priskalkylator 2024-02-27
B8: Kontakta Safespring | D8: Valuta
B9: Telefon: 08-55 10 73 56
B10: hello@safespring.com
B15: Safespring Compute | IaaS
B18: Infrastruktur kan köras med kostnadsfri Open Source-licens eller med Windows-licens.
B19: Alla priser är angivna i SEK, exklusive moms.
B20: Instruktioner: Fyll i önskad kvantitet i de färgade fälten.
B23: Flavors med lokal NVMe-disk
B24: Central blocklagring kan köpas till instanserna. Se "Central blocklagring" i prislistan.
B25: Produkt ID | C25: vCPU | D25: RAM (GB) | E25: Lokal disk (GB) | F25: Per timme | G25: Per 30 dagar | I25: Antal instanser | K25: Infrastruktur
B26: FLAVOR-l2. c2 r4. 100 | C26: 2 | D26: 4 | E26: 100 | F26: =G26/720 -> 0.6666666667 | G26: =C26*IAAS_vcpu_SEK+D26*IAAS_ram_SEK+E26*IAAS_nvme_SEK -> 480 | K26: =ROUNDUP(I26*G26,2) -> 0
B27: FLAVOR-l2. c2 r4. 500 | C27: 2 | D27: 4 | E27: 500 | F27: 1.222222222 | G27: 880 | K27: 0
B28: FLAVOR-l2. c2 r4. 1000 | C28: 2 | D28: 4 | E28: 1000 | F28: 1.916666667 | G28: 1380 | K28: 0
B29: FLAVOR-l2. c4 r8. 100 | C29: 4 | D29: 8 | E29: 100 | F29: 1.194444444 | G29: 860 | K29: 0
B30: FLAVOR-l2. c4 r8. 500 | C30: 4 | D30: 8 | E30: 500 | F30: 1.75 | G30: 1260 | K30: 0
B31: FLAVOR-l2. c4 r8. 1000 | C31: 4 | D31: 8 | E31: 1000 | F31: 2.444444444 | G31: 1760 | K31: 0
B32: FLAVOR-l2. c8 r16. 100 | C32: 8 | D32: 16 | E32: 100 | F32: 2.25 | G32: 1620 | K32: 0
B33: FLAVOR-l2. c8 r16. 500 | C33: 8 | D33: 16 | E33: 500 | F33: 2.805555556 | G33: 2020 | K33: 0
B34: FLAVOR-l2. c8 r16. 1000 | C34: 8 | D34: 16 | E34: 1000 | F34: 3.5 | G34: 2520 | K34: 0
B35: FLAVOR-l2. c16 r32. 100 | C35: 16 | D35: 32 | E35: 100 | F35: 4.361111111 | G35: 3140 | K35: 0
B36: FLAVOR-l2. c16 r32. 500 | C36: 16 | D36: 32 | E36: 500 | F36: 4.916666667 | G36: 3540 | K36: 0
B37: FLAVOR-l2. c16 r32. 1000 | C37: 16 | D37: 32 | E37: 1000 | F37: =G37/720 -> 5.611111111 | G37: =C37*IAAS_vcpu_SEK+D37*IAAS_ram_SEK+E37*IAAS_nvme_SEK -> 4040 | K37: =ROUNDUP(I37*G37,2) -> 0
B38: FLAVOR-l2. c16 r64. 500 | C38: 16 | D38: 64 | E38: 500 | F38: =G38/720 -> 7.361111111 | G38: =C38*IAAS_vcpu_SEK+D38*IAAS_ram_SEK+E38*IAAS_nvme_SEK -> 5300 | K38: =ROUNDUP(I38*G38,2) -> 0
B39: FLAVOR-l2. c32 r64.1000 | C39: 32 | D39: 64 | E39: 1000 | F39: 9.833333333 | G39: 7080 | K39: 0
B40: Totalt | C40: =SUM(C26:C39*I26:I39)&" st" -> 0 st | D40: =SUM(D26:D39*I26:I39)&" GB" -> 0 GB | E40: =SUM(E26:E39*I26:I39)&" GB" -> 0 GB | I40: =SUM(I26:I39)&" st" -> 0 st | K40: =SUM(K26:K39) -> 0
B44: Flavors utan lokal disk
B45: Central blocklagring kan köpas till instanserna. Se "Central blocklagring" i prislistan.
B46: Produkt ID | C46: vCPU | D46: RAM (GB) | E46: Lokal disk (GB) | F46: Per timme | G46: Per 30 dagar | I46: Antal instanser | K46: Infrastruktur
B47: FLAVOR-b2. c1 r2 | C47: 1 | D47: 2 | E47: 0 | F47: =G47/720 -> 0.2638888889 | G47: =C47*IAAS_vcpu_SEK+D47*IAAS_ram_SEK+E47*IAAS_ssd_SEK -> 190 | K47: =ROUNDUP(I47*G47,2) -> 0
B48: FLAVOR-b2. c1 r4 | C48: 1 | D48: 4 | E48: 0 | F48: 0.4166666667 | G48: 300 | K48: 0
B49: FLAVOR-b2. c2 r4 | C49: 2 | D49: 4 | E49: 0 | F49: 0.5277777778 | G49: 380 | K49: 0
B50: FLAVOR-b2. c2 r8 | C50: 2 | D50: 8 | E50: 0 | F50: 0.8333333333 | G50: 600 | K50: 0
B51: FLAVOR-b2 .c4 r8 | C51: 4 | D51: 8 | E51: 0 | F51: 1.055555556 | G51: 760 | K51: 0
B52: FLAVOR-b2. c4 r16 | C52: 4 | D52: 16 | E52: 0 | F52: 1.666666667 | G52: 1200 | K52: 0
B53: FLAVOR-b2. c8 r16 | C53: 8 | D53: 16 | E53: 0 | F53: 2.111111111 | G53: 1520 | K53: 0
B54: FLAVOR-b2. c8 r32 | C54: 8 | D54: 32 | E54: 0 | F54: 3.333333333 | G54: 2400 | K54: 0
B55: FLAVOR-b2. c16 r32 | C55: 16 | D55: 32 | E55: 0 | F55: 4.222222222 | G55: 3040 | K55: 0
B56: FLAVOR-b2. c16 r64 | C56: 16 | D56: 64 | E56: 0 | F56: =G56/720 -> 6.666666667 | G56: =C56*IAAS_vcpu_SEK+D56*IAAS_ram_SEK+E56*IAAS_ssd_SEK -> 4800 | K56: =ROUNDUP(I56*G56,2) -> 0
B57: Totalt | C57: =SUM(b2_list_vCPU*b2_list_Antal_instanser)&" st" -> 0 st | D57: =SUM(b2_list_ram*b2_list_vCPU)&" GB" -> 0 GB | E57: N/A | I57: =SUM(I47:I56)&" st" -> 0 st | K57: =SUM(K47:K56) -> 0
B59: Instanser med GPU och lokal disk (NVME-disk)
B60: Central blocklagring kan köpas till instanserna. Se "Central blocklagring" i prislistan.
B61: Produkt ID | C61: CPU (p) core | D61: RAM (GB) | E61: NVME (GB) | F61: GPU | G61: Per timme | H61: Per 30 dagar | I61: Antal instanser | K61: Infrastruktur
B62: INSTANCE-glm.large.1d | C62: 4 | D62: 16 | E62: 250 | F62: 1 | G62: =H62/720 -> 9.652777778 | H62: =C62*IAAS_vcpu_SEK+D62*IAAS_ram_SEK+E62*IAAS_nvme_SEK+F62*IAAS_gpu_SEK -> 6950 | K62: =ROUNDUP(I62*H62,2) -> 0
B63: INSTANCE-glm.xlarge.2d | C63: 8 | D63: 32 | E63: 500 | F63: 2 | G63: 19.30555556 | H63: =C63*IAAS_vcpu_SEK+D63*IAAS_ram_SEK+E63*IAAS_nvme_SEK+F63*IAAS_gpu_SEK -> 13900 | K63: =ROUNDUP(I63*H63,2) -> 0
B64: INSTANCE-glm.2xlarge.4d | C64: 16 | D64: 64 | E64: 1000 | F64: 4 | G64: =H64/720 -> 38.61111111 | H64: =C64*IAAS_vcpu_SEK+D64*IAAS_ram_SEK+E64*IAAS_nvme_SEK+F64*IAAS_gpu_SEK -> 27800 | K64: =ROUNDUP(I64*H64,2) -> 0
B65: INSTANCE-glm.4xlarge.8d | C65: 32 | D65: 128 | E65: 1000 | F65: 6 | G65: 60.55555556 | H65: =C65*IAAS_vcpu_SEK+D65*IAAS_ram_SEK+E65*IAAS_nvme_SEK+F65*IAAS_gpu_SEK -> 43600 | K65: =ROUNDUP(I65*H65,2) -> 0
B66: Totalt | C66: =SUM(I62:I65*C62:C65)&" st" -> 0 st | D66: =SUM(I62:I65*D62:D65)&" GB" -> 0 GB | E66: =SUM(I62:I65*E62:E65)&" GB" -> 0 GB | F66: =SUM(I62:I65*F62:F65)&" st" -> 0 st | I66: =SUM(I62:I65)&" st" -> 0 st | K66: =SUM(K62:K65) -> 0
B69: Bare Metal Compute
B70: Central blocklagring kan köpas till instanserna. Se "Central blocklagring" i prislistan.
B71: Produkt ID | C71: CPU (p) core | D71: RAM (GB) | E71: NVME (GB) | F71: Per timme | G71: Per 30 dagar | I71: Antal | K71: Infrastruktur
B72: INSTANCE-p1.2xlarge.16d | C72: 16 | D72: 128 | E72: 3800 | F72: =G72/720 -> 9.5 | G72: =INSTANCE_p1.2xlarge.16d_SEK -> 6840 | K72: =ROUNDUP(I72*G72,2) -> 0
B73: INSTANCE-p1.4xlarge.16d | C73: 32 | D73: 256 | E73: 3800 | F73: 19 | G73: =INSTANCE_p1.4xlarge.16d_SEK -> 13680 | K73: =ROUNDUP(I73*G73,2) -> 0
B74: INSTANCE-p1.8xlarge.32d | C74: 64 | D74: 512 | E74: 7600 | F74: 38 | G74: =INSTANCE_p1.8xlarge.32d_SEK -> 27360 | K74: =ROUNDUP(I74*G74,2) -> 0
B75: Totalt | C75: =SUM(I72:I74*C72:C74)&" st" -> 0 st | D75: =SUM(I72:I74*D72:D74)&" GB" -> 0 GB | E75: =SUM(I72:I74*E72:E74)&" GB" -> 0 GB | I75: =SUM(I72:I74)&" st" -> 0 st | K75: =SUM(K72:K74) -> 0
B78: Central blocklagring
B79: Central blocklagring ger tre kopior av datat utspritt i ett robust CEPH-kluster.
B80: Produkt ID | C80: Beskrivning | F80: Per timme | G80: Per 30 dagar | I80: Extra GB | K80: Lagring
B81: VOLUME-large | C81: HDD-backed 3-replica Ceph | F81: =G81/720 -> 0.001666666667 | G81: =VOLUME_large_SEK -> 1.2 | K81: =ROUNDUP(I81*G81,2) -> 0
B82: VOLUME-fast | C82: SSD-backed 3-replica Ceph | F82: =G82/720 -> 0.005 | G82: =VOLUME_fast_SEK -> 3.6 | K82: =ROUNDUP(I82*G82,2) -> 0
B83: VOLUME-snapshot | C83: Snapshot of image | F83: =G83/720 -> 0.001666666667 | G83: =VOLUME_large_SEK -> 1.2 | K83: =ROUNDUP(I83*G83,2) -> 0
B84: Totalt | I84: =SUM(I81:I83)&" GB" -> 0 GB | K84: =SUM(K81:K83) -> 0
B87: Safespring Storage | S3
B90: Snabb objektlagring med standarden S3. (Archive är anpassad för längre lagringstider)
B91: Kontaka oss för rabatter vid större lagringsmängder. Prismodell baserat på antal lagrade TB i månaden.
B92: Instruktioner: Fyll i önskad kvantitet i de färgade fälten.
B94: Produkt ID | G94: Per TB i 30 dagar | I94: Antal TB | K94: Storage
B95: S3-archive | C95: Anpassad för större lagringsvolymer över längre tid. | G95: =S3_archive.50_SEK -> 350 | K95: =I95*G95 -> 0
B96: S3-storage | C96: Anpassad för applikationer som aktivt använder S3-protokollet. | G96: =S3_storage50_SEK -> 500 | K96: =I96*G96 -> 0
B97: Totalt | K97: =SUM(K95:K96) -> 0
B99: S3 Archive
B100: Produkt ID | C100: Antal TB | D100: Per TB/månad
B101: S3-archive | E101: =_xlfn.IFS(H101<50,D102,H101<100,D103,H101<500,D104,H101<1000,D105,H101>999,D106) -> 185 | H101: 600 | I101: TB | K101: =_xlfn.IFS(H101<1000,ROUNDUP(H101*E101,2),H101>999,E101) -> 111000
B102: S3-archive | C102: 0 - 49 | D102: =S3_archive.50_SEK -> 350
B103: S3-archive | C103: 50 - 99 | D103: =S3_archive.100_SEK -> 270
B104: S3-archive | C104: 100 - 499 | D104: =S3_archive.500_SEK -> 200
B105: S3-archive | C105: 500 - 999 | D105: =S3_archive.1000_SEK -> 185
B106: S3-archive | C106: 1000 - | D106: =S3_archive.quote_SEK -> Be om offert
B107: Totalt | K107: =K101 -> 111000
B110: Safespring Backup | SP
B113: Cloud backup solution for on-prem or cloud servers based on Spectrum Protect (TSM).
B114: Alla priser angivna i SEK, exklusive moms.
B115: Instruktioner: Fyll i önskad kvantitet i de färgade fälten.
B117: Produkt ID | E117: Fast månadspris | G117: Per GB i 30 dagar | I117: Antal GB | J117: Deduplicering 1 | K117: Pris
B118: BAAS-on.demand 2 | E118: N/A | G118: =BAAS_on.demand_SEK -> 2.45 | J118: N/A | K118: =ROUNDUP(I118*G118,2) -> 0
B119: BAAS-small 3 | E119: 5500 | G119: =BAAS_small_SEK -> 1.75 | J119: 0.75 | K119: =IF(I119>0,$E$119+($G$119*(I119*(1-$J$119))),0) -> 0
B120: BAAS-large 4 | E120: 9500 | G120: =BAAS_large_SEK -> 0.92 | J120: 0.75 | K120: =IF(I120>0,$E$120+($G$120*(I120*(1-$J$120))),0) -> 0
B121: Totalt | I121: =SUM(I118:I120)&" GB" -> 0 GB | K121: =SUM(K118:K120) -> 0
B125: Compliant Kubernetes
B128: Kör Compliant Kubernetes som en managerad tjänst.
B129: Safespring Compute tillkommer. Vi kan tillsammans med er räkna ut ert pris.
B132: Produkt ID | C132: Support-tider | E132: Tillgänglighet | G132: Fast månadspris | K132: Pris
B133: PAAS-man.kubernetes8 | C133: 08:00 - 17:00 | E133: Vardagar | G133: 15000 | J133: 0 | K133: =IF(J133=1,G133," ") -> 
B134: PAAS-man.kubernetes24 | C134: Dygnet runt | E134: Alla dagar | G134: 24000 | K134: =IF(J133=3,G134," ") -> 
B135: Totalt | K135: =SUM(K133:K134) -> 0
B139: Nätverk och Mjukvara
B142: Alla priser angivna i SEK, exklusive moms.
B144: Nätverk
B145: Safespring erbjuder flera nätverkstjänster.
B146: Produkt ID | C146: Typ | E146: Beskrivning | J146: Debitering per | K146: Per månad
B147: NET-publicv4 | C147: IPv4 | E147: Publik | J147: IP-adress | K147: =NET_publicv4_SEK -> 25
B148: NET-publicv6 | C148: IPv6 | E148: Publik | J148: N/A | K148: =NET_publicv6_SEK -> 0
B149: NET-ingress | C149: Datatrafik | J149: GB | K149: =NET_ingress_SEK -> 0
B150: NET-egress | C150: Datatrafik | J150: GB | K150: =NET_egress_SEK -> 0
B151: NET-mgn.slb | C151: Managed SLB | E151: Lastbalanserare som kräver egna servrar | J151: Instans | K151: =NET_mgn.slb_SEK -> Begär offert
B152: NET-rdns | C152: Reverse DNS names | J152: N/A | K152: =NET_rdns_SEK -> 0
B153: NET-byoip | C153: Bring your own IP prefixes | J153: N/A | K153: 0
B157: Mjukvara och licenser
B158: Safespring erbjuder flera mjukvaror och licenser.
B159: Produkt ID | E159: Beskrivning | J159: Debitering per | K159: Per månad
B160: SW-win.ser.2022 | E160: Windows Server | J160: vCPU | K160: =SW_win.ser.201X_SEK -> 175
B161: SW-ms.sql.ser | E161: Windows SQL Server standard | J161: vCPU | K161: =SW_ms.sql.ser_SEK -> 1229
B162: SW-ms.sql.ser.ent | E162: Windows SQL Server Enterprise | J162: vCPU | K162: =SW_ms.sql.ser.ent_SEK -> 4766
B163: SW-nextcloud | E163: Nextcloud Filesharing | J163: N/A | K163: =SW_nextcloud_SEK -> Begär offert
B164: SW-suse.linux | E164: SUSE Linux Enterprise Server, 12x5 Support | J164: N/A | K164: =SW_suse_SEK -> Begär offert
B168: Plattformstjänster
B169: Safespring erbjuder flera plattformstjänster.
B170: Produkt ID | E170: Beskrivning | K170: Per månad
B171: PAAS-man.kubernetes24 | E171: Managed Compliant Kubernetes 24/7 | K171: =PAAS_man.kubernetes_SEK -> Begär offert
B172: PAAS-man.kubernetes8 | E172: Managed Compliant Kubernetes 8/5 | K172: =PAAS_man.postgres.sql_SEK -> Begär offert
B173: PAAS-man.elasticsearch | E173: Managed Elasticsearch (ingår i Compliant Kubernetes) | K173: =PAAS_man.elasticsearch_SEK -> Begär offert
B174: PAAS-openshift | E174: Ingen suport | K174: =PAAS_openshift_SEK -> Begär offert
B175: PAAS-jupyter.notebook | E175: Single basic Jupyter notebook with 1 lab, 8vCPU/16GB RAM virtual machine | K175: 5650
B176: PAAS-man.nats | E176: Managed NATS | K176: =PAAS_man.nats_SEK -> Begär offert
B177: PAAS-man.mariadb | E177: Managed MariaDB | K177: =PAAS_man.mariadb_SEK -> Begär offert
B178: PAAS-man.redis | E178: Managed Redis | K178: Begär offert
B182: Support och konsulttjänster
B185: Support gäller för Safespring Compute, Safespring Storage och Safespring Backup.
B186: Alla priser angivna i SEK, exklusive moms.
B188: Support
B189: Safespring erbjuder flera supportavtal.
B190: Produkt ID | D190: Beskrivning | I190: Debitering per | K190: Pris
B191: SUPPORT-base | D191: Support för Safesprings tjänster | I191: N/A | K191: 0
B192: SUPPORT-standard | D192: Access to backchannel chat room with support and engineering | I192: Total volym | K192: 3 % av total volym 5
B193: SUPPORT-premium | D193: Dedicated Service Manager with quarterly operations meetings | I193: Timme | K193: Begär offert
B196: Konsulttjänster
B197: Safespring erbjuder flera konsulttjänster.
B198: Produkt ID | D198: Beskrivning | I198: Debitering per | K198: Pris
B199: PS-consult.jun | D199: Cloud Infrastructure Consultant, junior expertise level | I199: Timme | K199: =PS_consult.jun_SEK -> 1127
B200: PS-consult.sen | D200: Cloud infrastructure Consultant, senior expertise level | I200: Timme | K200: =PS_consult.sen_SEK -> 1374
B201: PS-cloudarch.jun | D201: Cloud Infrastructure Architect Consultant, junior expertise level | I201: Timme | K201: =PS_cloudarch.jun_SEK -> 1277
B202: PS-cloudarch.sen | D202: Cloud Infrastructure Architect Consultant, senior expertise level | I202: Timme | K202: =PS_cloudarch.sen_SEK -> 1374
B203: PS-pm.jun | D203: Project Manager, junior expertise level | I203: Timme | K203: =PS_pm.jun_SEK -> 1139
B204: PS-pm.sen | D204: Project Manager, senior expertise level | I204: Timme | K204: =PS_pm.sen_SEK -> 1374
B207: Utbildningar
B208: Safespring erbjuder flera utbildningar inom IaaS och molntjänster.
B209: Produkt ID | D209: Beskrivning | G209: Längd | I209: Debitering per | K209: Pris
B210: COURSE-intro.iaas | D210: Introduktion till "infrastruktur som tjänst" | G210: En dag | I210: Tillfälle | K210: Begär offert
B211: COURSE-cxo.strategy | D211: Molnstrategi för ledningsgrupper, | G211: En dag | I211: Tillfälle | K211: Begär offert
B212: COURSE-intro.cloud | D212: Introduktion till moln-infrastrukturteknik, | G212: Fyra dagar | I212: Tillfälle | K212: Begär offert
B213: COURSE-devops.microservices | D213: Modern DevOps och "microservices" | G213: Fyra dagar | I213: Tillfälle | K213: Begär offert
B220: Månadskostnad
B223: Alla priser angivna i SEK, exklusive moms.
B225: Kontakta Safespring för fullständig offert
B226: Telefon: 08-55 10 73 56
B227: hello@safespring.com
B229: Produkt | J229: Månadskostnad
B230: Safespring Compute | C230: =SUM(I26:I37*C26:C37)+SUM(I47:I56*b2_list_Antal_instanser)+SUM(I62:I65*C62:C65)+SUM(I72:I74*C72:C74)&" vCPU"&" / "&SUM(I26:I37*E26)+SUM(b2_list_vCPU*b2_list_ram)+SUM(I62:I65*D62:D65)+SUM(I72:I74*D72:D74)&" GB RAM"&" / "&SUM(I26:I37*E26:E37)+SUM(b2_list_vCPU*E47:E56)+SUM(I62:I65*E62:E65)+SUM(I72:I74*E72:E74)&" GB NVME"&" / "&SUM(I81:I83)&" GB Blocklagring" -> 0 vCPU / 0 GB RAM / 0 GB NVME / 0 GB Blocklagring | J230: =K66+K75+K57+K40+K84 -> 0
B231: Safespring Storage | C231: =K96&" TB - Storage"&" / "&K95&" TB - Archive" -> 0 TB - Storage / 0 TB - Archive | J231: =K97 -> 0
B232: Safespring Backup | J232: =K121 -> 0
B233: Totalt | J233: =SUM(J230:J232) -> 0
B238: 1 Dedup är en datareduktion som görs i tjänsten. Beroende på data varierar det normalt mellan 45%-90%
B239: 2 Priset är per skyddad GB på klienten.
B240: 3 Priset är per lagrad GB i tjänsten efter deduplicering och komprimering. Det ingår 1 000 GB i det fasta månadspriset.
B241: 4 Priset är per lagrad GB i tjänsten efter deduplicering och komprimering.
B242: 5 The support fee is charged at 3 % of the total volume with a minimum fee of 1500 SEK per month.

Sheet EUR - Safespring services 2023
B5: Price calculator 2024-02-27
B8: Contact Safespring | D8: Currency
B9: Call us: +46 8-55 10 73 56
B10: hello@safespring.com
B15: Safespring Compute | IaaS
B18: Infrastructure as a service can run on an open source license or with a Windows license.
B19: All prices are in EUR, excluding VAT.
B20: Instructions: Fill in the desired quantity in the colored fields.
B23: Flavors with local NVMe storage
B24: Central block storage can be purchased for the instances. See "Central block storage" in the price list.
B25: Product ID | C25: vCPU | D25: RAM (GB) | E25: Local disc (GB) | F25: Hourly | G25: 30 days | I25: Amount | K25: Infrastructure
B26: ='SEK - Safesprings tjänster 2023'!B26 -> FLAVOR-l2. c2 r4. 100 | C26: ='SEK - Safesprings tjänster 2023'!C26 -> 2 | D26: ='SEK - Safesprings tjänster 2023'!D26 -> 4 | E26: ='SEK - Safesprings tjänster 2023'!E26 -> 100 | F26: =G26/720 -> 0.05933333333 | G26: =C26*IAAS_vcpu_EUR+D26*IAAS_ram_EUR+E26*IAAS_nvme_EUR -> 42.72 | K26: =ROUNDUP(I26*G26,2) -> 0
B27: ='SEK - Safesprings tjänster 2023'!B27 -> FLAVOR-l2. c2 r4. 500 | C27: ='SEK - Safesprings tjänster 2023'!C27 -> 2 | D27: ='SEK - Safesprings tjänster 2023'!D27 -> 4 | E27: ='SEK - Safesprings tjänster 2023'!E27 -> 500 | F27: 0.1087777778 | G27: 78.32 | K27: 0
B28: ='SEK - Safesprings tjänster 2023'!B28 -> FLAVOR-l2. c2 r4. 1000 | C28: ='SEK - Safesprings tjänster 2023'!C28 -> 2 | D28: ='SEK - Safesprings tjänster 2023'!D28 -> 4 | E28: ='SEK - Safesprings tjänster 2023'!E28 -> 1000 | F28: 0.1705833333 | G28: 122.82 | K28: 0
B29: ='SEK - Safesprings tjänster 2023'!B29 -> FLAVOR-l2. c4 r8. 100 | C29: ='SEK - Safesprings tjänster 2023'!C29 -> 4 | D29: ='SEK - Safesprings tjänster 2023'!D29 -> 8 | E29: ='SEK - Safesprings tjänster 2023'!E29 -> 100 | F29: 0.1063055556 | G29: 76.54 | K29: 0
B30: ='SEK - Safesprings tjänster 2023'!B30 -> FLAVOR-l2. c4 r8. 500 | C30: ='SEK - Safesprings tjänster 2023'!C30 -> 4 | D30: ='SEK - Safesprings tjänster 2023'!D30 -> 8 | E30: ='SEK - Safesprings tjänster 2023'!E30 -> 500 | F30: 0.15575 | G30: 112.14 | K30: 0
B31: ='SEK - Safesprings tjänster 2023'!B31 -> FLAVOR-l2. c4 r8. 1000 | C31: ='SEK - Safesprings tjänster 2023'!C31 -> 4 | D31: ='SEK - Safesprings tjänster 2023'!D31 -> 8 | E31: ='SEK - Safesprings tjänster 2023'!E31 -> 1000 | F31: 0.2175555556 | G31: 156.64 | K31: 0
B32: ='SEK - Safesprings tjänster 2023'!B32 -> FLAVOR-l2. c8 r16. 100 | C32: ='SEK - Safesprings tjänster 2023'!C32 -> 8 | D32: ='SEK - Safesprings tjänster 2023'!D32 -> 16 | E32: ='SEK - Safesprings tjänster 2023'!E32 -> 100 | F32: 0.20025 | G32: 144.18 | K32: 0
B33: ='SEK - Safesprings tjänster 2023'!B33 -> FLAVOR-l2. c8 r16. 500 | C33: ='SEK - Safesprings tjänster 2023'!C33 -> 8 | D33: ='SEK - Safesprings tjänster 2023'!D33 -> 16 | E33: ='SEK - Safesprings tjänster 2023'!E33 -> 500 | F33: 0.2496944444 | G33: 179.78 | K33: 0
B34: ='SEK - Safesprings tjänster 2023'!B34 -> FLAVOR-l2. c8 r16. 1000 | C34: ='SEK - Safesprings tjänster 2023'!C34 -> 8 | D34: ='SEK - Safesprings tjänster 2023'!D34 -> 16 | E34: ='SEK - Safesprings tjänster 2023'!E34 -> 1000 | F34: 0.3115 | G34: 224.28 | K34: 0
B35: ='SEK - Safesprings tjänster 2023'!B35 -> FLAVOR-l2. c16 r32. 100 | C35: ='SEK - Safesprings tjänster 2023'!C35 -> 16 | D35: ='SEK - Safesprings tjänster 2023'!D35 -> 32 | E35: ='SEK - Safesprings tjänster 2023'!E35 -> 100 | F35: 0.3881388889 | G35: 279.46 | K35: 0
B36: ='SEK - Safesprings tjänster 2023'!B36 -> FLAVOR-l2. c16 r32. 500 | C36: ='SEK - Safesprings tjänster 2023'!C36 -> 16 | D36: ='SEK - Safesprings tjänster 2023'!D36 -> 32 | E36: ='SEK - Safesprings tjänster 2023'!E36 -> 500 | F36: =G36/720 -> 0.4375833333 | G36: =C36*IAAS_vcpu_EUR+D36*IAAS_ram_EUR+E36*IAAS_nvme_EUR -> 315.06 | K36: =ROUNDUP(I36*G36,2) -> 0
B37: ='SEK - Safesprings tjänster 2023'!B37 -> FLAVOR-l2. c16 r32. 1000 | C37: ='SEK - Safesprings tjänster 2023'!C37 -> 16 | D37: ='SEK - Safesprings tjänster 2023'!D37 -> 32 | E37: ='SEK - Safesprings tjänster 2023'!E37 -> 1000 | F37: 0.4993888889 | G37: 359.56 | K37: 0
B38: ='SEK - Safesprings tjänster 2023'!B38 -> FLAVOR-l2. c16 r64. 500 | C38: ='SEK - Safesprings tjänster 2023'!C38 -> 16 | D38: ='SEK - Safesprings tjänster 2023'!D38 -> 64 | E38: ='SEK - Safesprings tjänster 2023'!E38 -> 500 | F38: =G38/720 -> 0.6551388889 | G38: =C38*IAAS_vcpu_EUR+D38*IAAS_ram_EUR+E38*IAAS_nvme_EUR -> 471.7 | K38: =ROUNDUP(I38*G38,2) -> 0
B39: ='SEK - Safesprings tjänster 2023'!B39 -> FLAVOR-l2. c32 r64.1000 | C39: ='SEK - Safesprings tjänster 2023'!C39 -> 32 | D39: ='SEK - Safesprings tjänster 2023'!D39 -> 64 | E39: ='SEK - Safesprings tjänster 2023'!E39 -> 1000 | F39: =G39/720 -> 0.8751666667 | G39: =C39*IAAS_vcpu_EUR+D39*IAAS_ram_EUR+E39*IAAS_nvme_EUR -> 630.12 | K39: =ROUNDUP(I39*G39,2) -> 0
B40: Total | C40: =SUM(C26:C39*I26:I39) -> 0 | D40: =SUM(D26:D39*I26:I39)&" GB" -> 0 GB | E40: =SUM(E26:E39*I26:I39)&" GB" -> 0 GB | I40: =SUM(I26:I39) -> 0 | K40: =SUM(K26:K39) -> 0
B44: Flavors without local storage
B45: Central block storage can be purchased for the instances. See "Central block storage" in the price list.
B46: Product ID | C46: vCPU | D46: RAM (GB) | E46: Local disc (GB) | F46: Hourly | G46: 30 days | I46: Amount | K46: Infrastructure
B47: ='SEK - Safesprings tjänster 2023'!B47 -> FLAVOR-b2. c1 r2 | C47: ='SEK - Safesprings tjänster 2023'!C47 -> 1 | D47: ='SEK - Safesprings tjänster 2023'!D47 -> 2 | E47: ='SEK - Safesprings tjänster 2023'!E47 -> 0 | F47: =G47/720 -> 0.02348611111 | G47: =C47*IAAS_vcpu_EUR+D47*IAAS_ram_EUR+E47*IAAS_ssd_EUR -> 16.91 | K47: =ROUNDUP(I47*G47,2) -> 0
B48: ='SEK - Safesprings tjänster 2023'!B48 -> FLAVOR-b2. c1 r4 | C48: ='SEK - Safesprings tjänster 2023'!C48 -> 1 | D48: ='SEK - Safesprings tjänster 2023'!D48 -> 4 | E48: ='SEK - Safesprings tjänster 2023'!E48 -> 0 | F48: 0.03708333333 | G48: 26.7 | K48: 0
B49: ='SEK - Safesprings tjänster 2023'!B49 -> FLAVOR-b2. c2 r4 | C49: ='SEK - Safesprings tjänster 2023'!C49 -> 2 | D49: ='SEK - Safesprings tjänster 2023'!D49 -> 4 | E49: ='SEK - Safesprings tjänster 2023'!E49 -> 0 | F49: 0.04697222222 | G49: 33.82 | K49: 0
B50: ='SEK - Safesprings tjänster 2023'!B50 -> FLAVOR-b2. c2 r8 | C50: ='SEK - Safesprings tjänster 2023'!C50 -> 2 | D50: ='SEK - Safesprings tjänster 2023'!D50 -> 8 | E50: ='SEK - Safesprings tjänster 2023'!E50 -> 0 | F50: 0.07416666667 | G50: 53.4 | K50: 0
B51: ='SEK - Safesprings tjänster 2023'!B51 -> FLAVOR-b2 .c4 r8 | C51: ='SEK - Safesprings tjänster 2023'!C51 -> 4 | D51: ='SEK - Safesprings tjänster 2023'!D51 -> 8 | E51: ='SEK - Safesprings tjänster 2023'!E51 -> 0 | F51: 0.09394444444 | G51: 67.64 | K51: 0
B52: ='SEK - Safesprings tjänster 2023'!B52 -> FLAVOR-b2. c4 r16 | C52: ='SEK - Safesprings tjänster 2023'!C52 -> 4 | D52: ='SEK - Safesprings tjänster 2023'!D52 -> 16 | E52: ='SEK - Safesprings tjänster 2023'!E52 -> 0 | F52: 0.1483333333 | G52: 106.8 | K52: 0
B53: ='SEK - Safesprings tjänster 2023'!B53 -> FLAVOR-b2. c8 r16 | C53: ='SEK - Safesprings tjänster 2023'!C53 -> 8 | D53: ='SEK - Safesprings tjänster 2023'!D53 -> 16 | E53: ='SEK - Safesprings tjänster 2023'!E53 -> 0 | F53: 0.1878888889 | G53: 135.28 | K53: 0
B54: ='SEK - Safesprings tjänster 2023'!B54 -> FLAVOR-b2. c8 r32 | C54: ='SEK - Safesprings tjänster 2023'!C54 -> 8 | D54: ='SEK - Safesprings tjänster 2023'!D54 -> 32 | E54: ='SEK - Safesprings tjänster 2023'!E54 -> 0 | F54: 0.2966666667 | G54: 213.6 | K54: 0
B55: ='SEK - Safesprings tjänster 2023'!B55 -> FLAVOR-b2. c16 r32 | C55: ='SEK - Safesprings tjänster 2023'!C55 -> 16 | D55: ='SEK - Safesprings tjänster 2023'!D55 -> 32 | E55: ='SEK - Safesprings tjänster 2023'!E55 -> 0 | F55: =G55/720 -> 0.3757777778 | G55: =C55*IAAS_vcpu_EUR+D55*IAAS_ram_EUR+E55*IAAS_ssd_EUR -> 270.56 | K55: =ROUNDUP(I55*G55,2) -> 0
B56: ='SEK - Safesprings tjänster 2023'!B56 -> FLAVOR-b2. c16 r64 | C56: ='SEK - Safesprings tjänster 2023'!C56 -> 16 | D56: ='SEK - Safesprings tjänster 2023'!D56 -> 64 | E56: ='SEK - Safesprings tjänster 2023'!E56 -> 0 | F56: 0.5933333333 | G56: 427.2 | K56: 0
B57: Total | C57: =SUM(b2_list_vCPU*b2_list_Antal_instanser) -> 0 | D57: =SUM(b2_list_ram*b2_list_vCPU) -> 0 | E57: N/A | I57: =SUM(I47:I56) -> 0 | K57: =SUM(K47:K56) -> 0
B59: Instanser med GPU och lokal disk (NVME-disk)
B60: Central blocklagring kan köpas till insatserna. Se "Central blocklagring" i prislistan.
B61: Produkt ID | C61: CPU (p) core | D61: RAM (GB) | E61: NVME (GB) | F61: GPU | G61: Per timme | H61: Per 30 dagar | I61: Antal instanser | K61: Infrastruktur
B62: INSTANCE-glm.large.1d | C62: 4 | D62: 16 | E62: 250 | F62: 1 | G62: =H62/720 -> 9.652777778 | H62: =C62*IAAS_vcpu_SEK+D62*IAAS_ram_SEK+E62*IAAS_nvme_SEK+F62*IAAS_gpu_SEK -> 6950 | K62: =ROUNDUP(I62*H62,2) -> 0
B63: INSTANCE-glm.xlarge.2d | C63: 8 | D63: 32 | E63: 500 | F63: 2 | G63: 19.30555556 | H63: =C63*IAAS_vcpu_SEK+D63*IAAS_ram_SEK+E63*IAAS_nvme_SEK+F63*IAAS_gpu_SEK -> 13900 | K63: =ROUNDUP(I63*H63,2) -> 0
B64: INSTANCE-glm.2xlarge.4d | C64: 16 | D64: 64 | E64: 1000 | F64: 4 | G64: 38.61111111 | H64: =C64*IAAS_vcpu_SEK+D64*IAAS_ram_SEK+E64*IAAS_nvme_SEK+F64*IAAS_gpu_SEK -> 27800 | K64: =ROUNDUP(I64*H64,2) -> 0
B65: INSTANCE-glm.4xlarge.8d | C65: 32 | D65: 128 | E65: 1000 | F65: 6 | G65: 60.55555556 | H65: =C65*IAAS_vcpu_SEK+D65*IAAS_ram_SEK+E65*IAAS_nvme_SEK+F65*IAAS_gpu_SEK -> 43600 | K65: =ROUNDUP(I65*H65,2) -> 0
B66: Totalt | C66: =SUM(I62:I65*C62:C65)&" st" -> 0 st | D66: =SUM(I62:I65*D62:D65)&" GB" -> 0 GB | E66: =SUM(I62:I65*E62:E65)&" GB" -> 0 GB | F66: =SUM(I62:I65*F62:F65)&" st" -> 0 st | I66: =SUM(I62:I65)&" st" -> 0 st | K66: =SUM(K62:K65) -> 0
B69: Bare Metal Compute
B70: Central blocklagring kan köpas till insatserna. Se "Central blocklagring" i prislistan.
B71: Produkt ID | C71: CPU (p) core | D71: RAM (GB) | E71: NVME (GB) | F71: Per timme | G71: Per 30 dagar | I71: Antal | K71: Infrastruktur
B72: INSTANCE-p1.2xlarge.16d | C72: 16 | D72: 128 | E72: 3800 | F72: =G72/720 -> 9.5 | G72: =INSTANCE_p1.2xlarge.16d_SEK -> 6840 | K72: =ROUNDUP(I72*G72,2) -> 0
B73: INSTANCE-p1.4xlarge.16d | C73: 32 | D73: 256 | E73: 3800 | F73: 19 | G73: =INSTANCE_p1.4xlarge.16d_SEK -> 13680 | K73: =ROUNDUP(I73*G73,2) -> 0
B74: INSTANCE-p1.8xlarge.32d | C74: 64 | D74: 512 | E74: 7600 | F74: 38 | G74: =INSTANCE_p1.8xlarge.32d_SEK -> 27360 | K74: =ROUNDUP(I74*G74,2) -> 0
B75: Totalt | C75: =SUM(I72:I74*C72:C74)&" st" -> 0 st | D75: =SUM(I72:I74*D72:D74)&" GB" -> 0 GB | E75: =SUM(I72:I74*E72:E74)&" GB" -> 0 GB | I75: =SUM(I72:I74)&" st" -> 0 st | K75: =SUM(K72:K74) -> 0
B78: Central block storage
B79: Central block storage provides three copies of the data distributed in a robust CEPH cluster.
B80: Product ID | C80: Description | F80: Hourly | G80: 30 days | I80: Amount (GB) | K80: Storage
B81: VOLUME-large | C81: HDD-backed 3-replica Ceph | F81: =G81/720 -> 0.0001483333333 | G81: =VOLUME_large_EUR -> 0.1068 | K81: =ROUNDUP(I81*G81,2) -> 0
B82: VOLUME-fast | C82: SSD-backed 3-replica Ceph | F82: =G82/720 -> 0.000445 | G82: =VOLUME_fast_EUR -> 0.3204 | K82: =ROUNDUP(I82*G82,2) -> 0
B83: VOLUME-snapshot | C83: Snapshot of image | F83: =G83/720 -> 0.0001483333333 | G83: =VOLUME_large_EUR -> 0.1068 | K83: =ROUNDUP(I83*G83,2) -> 0
B84: Total | I84: =SUM(I81:I83)&" GB" -> 0 GB | K84: =SUM(K81:K83) -> 0
B87: Safespring Storage | S3
B90: Fast object storage with S3 standard. (Archive is adapted for longer storage times)
B91: Contact us for discounts on larger storage quantities. Pricing model based on the number of stored terabytes per month.
B92: Instructions: Fill in the desired quantity in the colored fields.
B94: Product ID | G94: Per TB for 30 days | I94: Amount (TB) | K94: Storage
B95: S3-archive | G95: =S3_archive.50_EUR -> 31.15 | K95: =I95*G95 -> 0
B96: S3-storage | G96: =S3_storage50_EUR -> 44.5 | K96: =I96*G96 -> 0
B97: Total | K97: =SUM(K95:K96) -> 0
B99: S3 Archive
B100: Produkt ID | C100: Antal TB | D100: Per TB/månad
B101: S3-archive | E101: =_xlfn.IFS(H101<50,D102,H101<100,D103,H101<500,D104,H101<1000,D105,H101>999,D106) -> 185 | H101: 600 | I101: TB | K101: =_xlfn.IFS(H101<1000,ROUNDUP(H101*E101,2),H101>999,E101) -> 111000
B102: S3-archive | C102: 0 - 49 | D102: =S3_archive.50_SEK -> 350
B103: S3-archive | C103: 50 - 99 | D103: =S3_archive.100_SEK -> 270
B104: S3-archive | C104: 100 - 499 | D104: =S3_archive.500_SEK -> 200
B105: S3-archive | C105: 500 - 999 | D105: =S3_archive.1000_SEK -> 185
B106: S3-archive | C106: 1000 - | D106: =S3_archive.quote_SEK -> Be om offert
B107: Totalt | K107: =K101 -> 111000
B110: Safespring Backup | SP
B113: Cloud backup solution for on-prem or cloud servers based on Spectrum Protect (TSM).
B114: All prices are in EUR, excluding VAT.
B115: Instructions: Fill in the desired quantity in the colored fields.
B117: Product ID | E117: Fixed monthly price | G117: Per GB / 30 days | I117: Amount (GB) | J117: Deduplication 1 | K117: Backup
B118: BAAS-on.demand 2 | E118: N/A | G118: =BAAS_on.demand_EUR -> 0.21805 | J118: N/A | K118: =ROUNDUP(I118*G118,2) -> 0
B119: BAAS-small 3 | E119: =BAAS_small.fee_EUR -> 489.5 | G119: =BAAS_small_EUR -> 0.15575 | J119: 0.75 | K119: =IF(I119>0,$E$119+($G$119*(I119*(1-$J$119))),0) -> 0
B120: BAAS-large 4 | E120: =BAAS_large.fee_EUR -> 845.5 | G120: =BAAS_large_EUR -> 0.08188 | J120: 0.75 | K120: =IF(I120>0,$E$120+($G$120*(I120*(1-$J$120))),0) -> 0
B121: Total | I121: =SUM(I118:I120)&" GB" -> 0 GB | K121: =SUM(K118:K120) -> 0
B125: Compliant Kubernetes
B128: Run Compliant Kubernetes as a managed service. Safespring Compute will be added.
B129: Safespring Compute will be added. We can work with you to calculate your price.
B130: Instructions: Fill in the desired quantity in the colored fields.
B132: Product ID | C132: Support hours | E132: Availability | G132: Fixed monthly price | K132: Pris
B133: PAAS-man.kubernetes8 | C133: 08:00 - 17:00 | E133: Weekdays | G133: =PAAS_man.kubernetes_EUR -> Requests for quotation | J133: 1 | K133: =IF(J133=1,G133," ") -> Requests for quotation
B134: PAAS-man.kubernetes24 | C134: Around the clock | E134: All days | G134: =PAAS_man.kubernetes8_EUR -> Requests for quotation | K134: =IF(J133=3,G134," ") -> 
B135: Total | K135: =SUM(K133:K134) -> 0
B139: Network and software
B142: All prices are in EUR, excluding VAT.
B144: Network
B145: Safespring offers several network services.
B146: Product ID | C146: Type | E146: Description | J146: Billing per | K146: Monthly
B147: NET-publicv4 | C147: IPv4 | E147: Public | J147: IP-address | K147: =NET_publicv4_EUR -> 2.225
B148: NET-publicv6 | C148: IPv6 | E148: Public | J148: N/A | K148: =NET_publicv6_EUR -> 0
B149: NET-ingress | C149: Data transfer | J149: GB | K149: =NET_ingress_EUR -> 0
B150: NET-egress | C150: Data transfer | J150: GB | K150: =NET_egress_EUR -> 0
B151: NET-mgn.slb | C151: Managed SLB | E151: Load balancers that require their own servers | J151: Instance | K151: =NET_mgn.slb_EUR -> Request a quote
B152: NET-rdns | C152: Reverse DNS names | J152: N/A | K152: =NET_rdns_EUR -> 0
B153: NET-byoip | C153: Bring your own IP prefixes | J153: N/A | K153: 0
B157: Software and licenses
B158: Safespring offers several software and licenses.
B159: Product ID | E159: Description | J159: Billing per | K159: Monthly
B160: SW-win.ser.2022 | E160: Windows Server | J160: vCPU | K160: =SW_win.ser.201X_EUR -> 15.575
B161: SW-ms.sql.ser | E161: Windows SQL Server standard | J161: vCPU | K161: =SW_ms.sql.ser_EUR -> 109.381
B162: SW-ms.sql.ser.ent | E162: Windows SQL Server Enterprise | J162: vCPU | K162: =SW_ms.sql.ser.ent_EUR -> 424.174
B163: SW-nextcloud | E163: Nextcloud Filesharing | K163: =SW_nextcloud_EUR -> Request a quote
B164: SW-suse.linux | E164: SUSE Linux Enterprise Server, 12x5 Support | K164: =SW_suse_EUR -> Request a quote
B168: Platform services
B169: Safespring offers several platform services.
B170: Product ID | E170: Description | K170: Monthly
B171: PAAS-man.kubernetes24 | E171: Managed Compliant Kubernetes 24/7 | K171: =PAAS_man.kubernetes_EUR -> Requests for quotation
B172: PAAS-man.kubernetes8 | E172: Managed Compliant Kubernetes 8/5 | K172: =PAAS_man.postgres.sql_EUR -> Requests for quotation
B173: PAAS-man.elasticsearch | E173: Managed Elasticsearch (ingår i Compliant Kubernetes) | K173: =PAAS_man.elasticsearch_EUR -> Requests for quotation
B174: PAAS-openshift | E174: No support | K174: =PAAS_openshift_EUR -> Requests for quotation
B175: PAAS-man.nats | E175: Managed NATS | K175: =PAAS_man.nats_EUR -> Requests for quotation
B176: PAAS-jupyter.notebook | E176: Single basic Jupyter notebook with 1 lab, 8vCPU/16GB RAM virtual machine | K176: 565
B177: PAAS-man.mariadb | E177: Managed MariaDB | K177: =PAAS_man.mariadb_EUR -> Requests for quotation
B178: PAAS-man.redis | E178: Managed Redis | K178: =PAAS_man.redis_EUR -> Requests for quotation
B182: Support and consulting services
B185: Support applies to Safespring Compute, Safespring Storage and Safespring Backup.
B186: All prices stated in SEK, excluding VAT.
B188: Support
B189: Safespring offers several support agreements.
B190: Product ID | D190: Description | I190: Billing per | K190: Monthly
B191: SUPPORT-base | D191: Support for Safespring's services | I191: Free | K191: 0
B192: SUPPORT-standard | D192: Access to backchannel chat room with support and engineering | I192: Total volume | K192: 3% of total volume 5
B193: SUPPORT-premium | D193: Dedicated Service Manager with quarterly operations meetings | I193: Hour | K193: Requests for quotation
B196: Consulting services
B197: Safespring offers several consulting services.
B198: Product ID | D198: Description | I198: Billing per | K198: Monthly
B199: PS-consult.jun | D199: Cloud Infrastructure Consultant, junior expertise level | I199: Hour | K199: =PS_consult.jun_EUR -> 100.303
B200: PS-consult.sen | D200: Cloud infrastructure Consultant, senior expertise level | I200: Hour | K200: =PS_consult.sen_EUR -> 122.286
B201: PS-cloudarch.jun | D201: Cloud Infrastructure Architect Consultant, junior expertise level | I201: Hour | K201: =PS_cloudarch.jun_EUR -> 113.653
B202: PS-cloudarch.sen | D202: Cloud Infrastructure Architect Consultant, senior expertise level | I202: Hour | K202: =PS_cloudarch.sen_EUR -> 122.286
B203: PS-pm.jun | D203: Project Manager, junior expertise level | I203: Hour | K203: =PS_pm.jun_EUR -> 101.371
B204: PS-pm.sen | D204: Project Manager, senior expertise level | I204: Hour | K204: =PS_pm.sen_EUR -> 122.286
B207: Educations
B208: Safespring offers several courses in IaaS and cloud services.
B209: Product ID | D209: Description | G209: Duration | I209: Billing per | K209: Price
B210: COURSE-intro.iaas | D210: Introduction to "infrastructure as a service" | G210: One day | I210: Occasion | K210: Requests for quotation
B211: COURSE-cxo.strategy | D211: Cloud strategy for management teams | G211: One day | I211: Occasion | K211: Requests for quotation
B212: COURSE-intro.cloud | D212: Introduction to cloud infrastructure technology | G212: Four days | I212: Occasion | K212: Requests for quotation
B213: COURSE-devops.microservices | D213: Modern DevOps and "microservices" | G213: Four days | I213: Occasion | K213: Requests for quotation
B220: Calculated price
B223: All prices stated in SEK, excluding VAT.
B225: Contact Safespring for a complete quote
B226: Phone: +46 8-55 10 73 56
B227: hello@safespring.com
B229: Product | J229: Monthly cost
B230: Safespring Compute | C230: =SUM(I26:I37*C26:C37)+SUM(I47:I56*b2_list_Antal_instanser)+SUM(I62:I65*C62:C65)+SUM(I72:I74*C72:C74)&" vCPU"&" / "&SUM(I26:I37*E26)+SUM(b2_list_vCPU*b2_list_ram)+SUM(I62:I65*D62:D65)+SUM(I72:I74*D72:D74)&" GB RAM"&" / "&SUM(I26:I37*E26:E37)+SUM(b2_list_vCPU*E47:E56)+SUM(I62:I65*E62:E65)+SUM(I72:I74*E72:E74)&" GB NVME"&" / "&SUM(I81:I83)&" GB Blocklagring" -> 0 vCPU / 0 GB RAM / 0 GB NVME / 0 GB Blocklagring | J230: =K66+K75+K57+K40+K84 -> 0
B231: Safespring Storage | C231: =K96&" TB - S3"&" / "&K95&" TB - Archive" -> 0 TB - S3 / 0 TB - Archive | J231: =K97 -> 0
B232: Safespring Backup | J232: =K121 -> 0
B233: Total | J233: =SUM(J230:J232) -> 0
B238: 1 Deduplication is a data reduction done in the service. Depending on the data, it usually varies between 45% -90%
B239: 2 The price is per protected GB on the client.
B240: 3 The price is per GB stored in the service after deduplication and compression.
B241: 4 The price is per GB stored in the service after deduplication and compression. The service includes 1000GB in the fixed monthly price.
B242: 5 The support fee is charged at 3 % of the total volume with a minimum fee of 1500 SEK per month.

Sheet EUR - Safespring services 2021 (hidden)
B5: Price calculator 2022-01-04
B8: Contact Safespring | D8: Currency
B9: Phone: +46 855 10 73 56
B10: sales@safespring.com
D11: ="1 SEK = "&EUR&" EUR" -> 1 SEK = 0,089 EUR
B15: Safespring Compute
B18: Infrastructure as a service can run on a open source license or with a Windows license.
B19: All prices are in EUR, excluding VAT.
B20: Instructions: Enter the desired amount in the colored fields
B23: Instances with central block storage
B24: Product ID | C24: vCPU | D24: RAM (GB) | E24: Storage (GB) | G24: Hourly | H24: Monthly (30 days) | I24: Instances | K24: Infrastructure
B25: INSTANCE-b.tiny | C25: 1 | D25: 1 | E25: 40 | G25: =H25/720 -> 0.0344875 | H25: =C25*IAAS_vcpu_EUR+D25*IAAS_ram_EUR+E25*IAAS_ssd_EUR -> 24.831 | J25: Instances | K25: =ROUNDUP(I25*H25,2) -> 0
B26: INSTANCE-b.small | C26: 1 | D26: 2 | E26: 40 | G26: 0.04128611111 | H26: =C26*IAAS_vcpu_EUR+D26*IAAS_ram_EUR+E26*IAAS_ssd_EUR -> 29.726 | J26: =J25 -> Instances | K26: 0
B27: INSTANCE-b.medium | C27: 2 | D27: 4 | E27: 40 | G27: 0.06477222222 | H27: =C27*IAAS_vcpu_EUR+D27*IAAS_ram_EUR+E27*IAAS_ssd_EUR -> 46.636 | J27: Instances | K27: 0
B28: INSTANCE-b.large | C28: 4 | D28: 8 | E28: 40 | G28: 0.1117444444 | H28: 80.456 | J28: Instances | K28: 0
B29: INSTANCE-b.xlarge | C29: 8 | D29: 16 | E29: 40 | G29: 0.2056888889 | H29: 148.096 | J29: Instances | K29: 0
B30: INSTANCE-b.2xlarge | C30: 16 | D30: 32 | E30: 40 | G30: 0.3935777778 | H30: 283.376 | J30: Instances | K30: 0
B31: INSTANCE-m.small | C31: 1 | D31: 4 | E31: 40 | G31: 0.05488333333 | H31: 39.516 | J31: Instances | K31: 0
B32: INSTANCE-m.medium | C32: 2 | D32: 8 | E32: 40 | G32: 0.09196666667 | H32: 66.216 | J32: Instances | K32: 0
B33: INSTANCE-m.large | C33: 4 | D33: 16 | E33: 40 | G33: 0.1661333333 | H33: 119.616 | J33: Instances | K33: 0
B34: INSTANCE-m.xlarge | C34: 8 | D34: 32 | E34: 40 | G34: =H34/720 -> 0.3144666667 | H34: =C34*IAAS_vcpu_EUR+D34*IAAS_ram_EUR+E34*IAAS_ssd_EUR -> 226.416 | J34: =J33 -> Instances | K34: 0
B35: INSTANCE-m.2xlarge | C35: 16 | D35: 64 | E35: 40 | G35: 0.6111333333 | H35: =C35*IAAS_vcpu_EUR+D35*IAAS_ram_EUR+E35*IAAS_ssd_EUR -> 440.016 | J35: =J34 -> Instances | K35: 0
B36: INSTANCE-m.4xlarge | C36: 32 | D36: 128 | E36: 40 | G36: 1.204466667 | H36: 867.216 | J36: =J35 -> Instances | K36: 0
B37: INSTANCE-m.8xlarge | C37: 64 | D37: 256 | E37: 40 | G37: 2.391133333 | H37: =C37*IAAS_vcpu_EUR+D37*IAAS_ram_EUR+E37*IAAS_ssd_EUR -> 1721.616 | J37: =J36 -> Instances | K37: 0
B38: Total | C38: =SUM(C25:C37*I25:I37) -> 0 | D38: =SUM(D25:D37*I25:I37) -> 0 | E38: =SUM(E25:E37*I25:I37) -> 0 | I38: =SUM(I25:I37) -> 0 | K38: =SUM(K25:K37)&" €" -> 0 €
B41: Instances with local storage (NVMe)
B42: Product ID | C42: vCPU | D42: RAM (GB) | E42: NVME (GB) | G42: Hourly | H42: Monthly (30 days) | I42: Instances | K42: Infrastructure
B43: INSTANCE-lb.tiny | C43: 1 | D43: 1 | E43: 10 | G43: =H43/720 -> 0.01792361111 | H43: =C43*IAAS_vcpu_EUR+D43*IAAS_ram_EUR+E43*IAAS_nvme_EUR -> 12.905 | J43: =J37 -> Instances | K43: =ROUNDUP(I43*H43,2) -> 0
B44: INSTANCE-lb.small | C44: 1 | D44: 2 | E44: 20 | G44: 0.02595833333 | H44: 18.69 | J44: =J43 -> Instances | K44: 0
B45: INSTANCE-lb.medium.1d | C45: 2 | D45: 4 | E45: 250 | G45: 0.077875 | H45: 56.07 | J45: =J44 -> Instances | K45: 0
B46: INSTANCE-lb.large.1d | C46: 4 | D46: 8 | E46: 250 | G46: 0.1248472222 | H46: 89.89 | J46: Instances | K46: 0
B47: INSTANCE-lb.xlarge.1d | C47: 8 | D47: 16 | E47: 250 | G47: 0.2187916667 | H47: 157.53 | J47: Instances | K47: 0
B48: INSTANCE-lb.2xlarge.1d | C48: 16 | D48: 32 | E48: 250 | G48: 0.4066805556 | H48: 292.81 | J48: Instances | K48: 0
B49: INSTANCE-lb.2xlarge.2d | C49: 16 | D49: 32 | E49: 500 | G49: 0.4375833333 | H49: 315.06 | J49: Instances | K49: 0
B50: INSTANCE-lb.2xlarge.4d | C50: 16 | D50: 32 | E50: 1000 | G50: 0.4993888889 | H50: 359.56 | J50: Instances | K50: 0
B51: INSTANCE-lb.4xlarge.1d | C51: 32 | D51: 64 | E51: 250 | G51: 0.7824583333 | H51: 563.37 | J51: Instances | K51: 0
B52: INSTANCE-lb.4xlarge.2d | C52: 32 | D52: 64 | E52: 500 | G52: 0.8133611111 | H52: 585.62 | J52: =J47 -> Instances | K52: 0
B53: INSTANCE-lb.4xlarge.4d | C53: 32 | D53: 64 | E53: 1000 | G53: 0.8751666667 | H53: 630.12 | J53: Instances | K53: 0
B54: INSTANCE-lm.small | C54: 1 | D54: 4 | E54: 20 | G54: 0.03955555556 | H54: 28.48 | J54: Instances | K54: 0
B55: INSTANCE-lm.medium.1d | C55: 2 | D55: 8 | E55: 250 | G55: 0.1050694444 | H55: 75.65 | J55: Instances | K55: 0
B56: INSTANCE-lm.large.1d | C56: 4 | D56: 16 | E56: 250 | G56: 0.1792361111 | H56: 129.05 | J56: Instances | K56: 0
B57: INSTANCE-lm.xlarge.1d | C57: 8 | D57: 32 | E57: 250 | G57: 0.3275694444 | H57: 235.85 | J57: Instances | K57: 0
B58: INSTANCE-lm.xlarge.2d | C58: 8 | D58: 32 | E58: 500 | G58: 0.3584722222 | H58: 258.1 | J58: Instances | K58: 0
B59: INSTANCE-lm.xlarge.4d | C59: 8 | D59: 32 | E59: 1000 | G59: 0.4202777778 | H59: 302.6 | J59: Instances | K59: 0
B60: INSTANCE-lm.2xlarge.1d | C60: 16 | D60: 64 | E60: 250 | G60: 0.6242361111 | H60: 449.45 | J60: Instances | K60: 0
B61: INSTANCE-lm.2xlarge.2d | C61: 16 | D61: 64 | E61: 500 | G61: 0.6551388889 | H61: 471.7 | J61: Instances | K61: 0
B62: INSTANCE-lm.2xlarge.4d | C62: 16 | D62: 64 | E62: 1000 | G62: =H62/720 -> 0.7169444444 | H62: =C62*IAAS_vcpu_EUR+D62*IAAS_ram_EUR+E62*IAAS_nvme_EUR -> 516.2 | J62: Instances | K62: 0
B63: INSTANCE-lm.4xlarge.1d | C63: 32 | D63: 128 | E63: 250 | G63: 1.217569444 | H63: 876.65 | J63: Instances | K63: 0
B64: INSTANCE-lm.4xlarge.2d | C64: 32 | D64: 128 | E64: 500 | G64: 1.248472222 | H64: 898.9 | J64: Instances | K64: 0
B65: INSTANCE-lm.4xlarge.4d | C65: 32 | D65: 128 | E65: 1000 | G65: 1.310277778 | H65: 943.4 | J65: Instances | K65: 0
B66: INSTANCE-lm.8xlarge.4d | C66: 64 | D66: 256 | E66: 1000 | G66: =H66/720 -> 2.496944444 | H66: =C66*IAAS_vcpu_EUR+D66*IAAS_ram_EUR+E66*IAAS_nvme_EUR -> 1797.8 | J66: Instances | K66: 0
B67: Total | C67: =SUM(C43:C66*I43:I66) -> 0 | D67: =SUM(D43:D66*I43:I66) -> 0 | E67: =SUM(E43:E66*I43:I66) -> 0 | I67: =SUM(I43:I66) -> 0 | K67: =SUM(K43:K65) -> 0
B70: Instances with GPU and local storage (NVMe)
B71: Product ID | C71: vCPU | D71: RAM (GB) | E71: NVME (GB) | F71: GPU | G71: Hourly | H71: Monthly | I71: Instances | J71: Windows licenses | L71: Infrastructure | M71: Licenses
B72: INSTANCE-glm.large.1d | C72: 4 | D72: 16 | E72: 250 | F72: 1 | G72: =H72/720 -> 0.8590972222 | H72: =C72*IAAS_vcpu_EUR+D72*IAAS_ram_EUR+E72*IAAS_nvme_EUR+F72*IAAS_gpu_EUR -> 618.55 | K72: =J61 -> Instances | L72: =ROUNDUP(I72*H72,2) -> 0 | M72: =J72*C72*SW_win.ser.201X_EUR -> 0
B73: INSTANCE-glm.xlarge.2d | C73: 8 | D73: 32 | E73: 500 | F73: 2 | G73: 1.718194444 | H73: =C73*IAAS_vcpu_EUR+D73*IAAS_ram_EUR+E73*IAAS_nvme_EUR+F73*IAAS_gpu_EUR -> 1237.1 | K73: =J62 -> Instances | L73: =ROUNDUP(I73*H73,2) -> 0 | M73: =J73*C73*SW_win.ser.201X_EUR -> 0
B74: INSTANCE-glm.2xlarge.4d | C74: 16 | D74: 64 | E74: 1000 | F74: 4 | G74: 3.436388889 | H74: =C74*IAAS_vcpu_EUR+D74*IAAS_ram_EUR+E74*IAAS_nvme_EUR+F74*IAAS_gpu_EUR -> 2474.2 | K74: =J63 -> Instances | L74: =ROUNDUP(I74*H74,2) -> 0 | M74: =J74*C74*SW_win.ser.201X_EUR -> 0
B75: INSTANCE-glm.4xlarge.8d | C75: 32 | D75: 128 | E75: 1000 | F75: 6 | G75: 5.389444444 | H75: =C75*IAAS_vcpu_EUR+D75*IAAS_ram_EUR+E75*IAAS_nvme_EUR+F75*IAAS_gpu_EUR -> 3880.4 | K75: =J64 -> Instances | L75: =ROUNDUP(I75*H75,2) -> 0 | M75: =J75*C75*SW_win.ser.201X_EUR -> 0
B76: Total | I76: =SUM(I72:I75) -> 0 | J76: =SUM(J72:J75) -> 0 | L76: =SUM(L72:L75) -> 0 | M76: =SUM(M72:M75) -> 0
B79: Bare Metal compute
B80: Product ID | C80: vCPU | D80: RAM (GB) | E80: NVME (GB) | G80: Hourly | H80: Monthly | I80: Instances | J80: Windows licenses | L80: Infrastructure | M80: Licenses
B81: INSTANCE-p1.2xlarge.16d | C81: 16 | D81: 128 | E81: 3800 | G81: =H81/720 -> 0.8455 | H81: =INSTANCE_p1.2xlarge.16d_EUR -> 608.76 | K81: Instanser | L81: =ROUNDUP(I81*H81,2) -> 0 | M81: =J81*C81*SW_win.ser.201X_EUR -> 0
B82: INSTANCE-p1.4xlarge.16d | C82: 32 | D82: 256 | E82: 3800 | G82: 1.691 | H82: =INSTANCE_p1.4xlarge.16d_EUR -> 1217.52 | K82: =K81 -> Instanser | L82: =ROUNDUP(I82*H82,2) -> 0 | M82: =J82*C82*SW_win.ser.201X_EUR -> 0
B83: INSTANCE-p1.8xlarge.32d | C83: 64 | D83: 512 | E83: 7600 | G83: 3.382 | H83: =INSTANCE_p1.8xlarge.32d_EUR -> 2435.04 | K83: Instanser | L83: =ROUNDUP(I83*H83,2) -> 0 | M83: =J83*C83*SW_win.ser.201X_EUR -> 0
B84: Total | I84: =SUM(I81:I83) -> 0 | J84: =SUM(J81:J83) -> 0 | L84: =SUM(L81:L83) -> 0 | M84: =SUM(M81:M83) -> 0
B87: Extra Storage
B88: Product ID | C88: Description | E88: Hourly | F88: Per GB / Monthly | I88: Extra GB
B89: VOLUME-large | C89: HDD-backed 3-replica Ceph | E89: =F89/720 -> 0.0001483333333 | F89: =VOLUME_large_EUR -> 0.1068 | J89: GB | K89: =ROUNDUP(I89*F89,2) -> 0
B90: VOLUME-fast | C90: SSD-backed 3-replica Ceph | E90: =F90/720 -> 0.000445 | F90: =VOLUME_fast_EUR -> 0.3204 | J90: GB | K90: =ROUNDUP(I90*F90,2) -> 0
B91: Total | I91: =SUM(I89:I90)&" GB" -> 0 GB | K91: =SUM(K89:K90) -> 0
B95: Safespring Storage
B98: Object storage with S3 standard.
B99: Price model based on the amount of terabyte stored at Safespring Storage
B100: Instructions: Enter the desired amount in the colored fields
B102: Product ID | C102: Amount of TB | D102: Per TB/monthly | H102: Amount of TB | M102: Storage
B103: S3-storage | E103: =_xlfn.IFS(H103<50,D104,H103<100,D105,H103<500,D106,H103<1000,D107,H103>999,D108) -> 31.15 | H103: 0 | I103: TB | M103: =_xlfn.IFS(H103<1000,ROUNDUP(H103*E103,2),H103>999,E103) -> 0
B104: S3-storage | C104: 0 - 49 | D104: =S3_storage.50_EUR -> 31.15
B105: S3-storage | C105: 50 - 99 | D105: =S3_storage.100_EUR -> 24.03
B106: S3-storage | C106: 100 - 499 | D106: =S3_storage.500_EUR -> 17.8
B107: S3-storage | C107: 500 - 999 | D107: =S3_storage.1000_EUR -> 16.465
B108: S3-storage | C108: 1000 - | D108: =S3_storage.quote_EUR -> Request a quote
B109: Total | M109: =M103 -> 0
B111: Product ID | C111: Amount of TB | D111: Per TB/monthly | H111: Amount of TB
B112: S3-archive | E112: =_xlfn.IFS(H112<50,D113,H112<100,D114,H112<500,D115,H112<1000,D116,H112>999,D117) -> 31.15 | H112: 0 | I112: TB | M112: =_xlfn.IFS(H112<1000,ROUNDUP(H112*E112,2),H112>999,E112) -> 0
B113: S3-archive | C113: 0 - 49 | D113: =S3_archive.50_EUR -> 31.15
B114: S3-archive | C114: 50 - 99 | D114: =S3_archive.100_EUR -> 24.03
B115: S3-archive | C115: 100 - 499 | D115: =S3_archive.500_EUR -> 17.8
B116: S3-archive | C116: 500 - 999 | D116: =S3_archive.1000_EUR -> 16.465
B117: S3-archive | C117: 1000 - | D117: =S3_archive.quote_EUR -> Request a quote
B118: Total | M118: =M112 -> 0
B122: Safespring Backup
B125: Cloud backup solution for on-prem or cloud servers based on Spectrum Protect.
B126: All prices are in EUR, excluding VAT.
B127: Instructions: Enter the desired amount in the colored fields
B129: Product ID | D129: Monthly fee | F129: Per GB/month | H129: Antal GB | J129: Deduplication* | M129: Pris
B130: BAAS-on.demand ** | D130: N/A | F130: =BAAS_on.demand_EUR -> 0.21805 | H130: 0 | I130: GB | J130: N/A | M130: =ROUNDUP(H130*F130,2) -> 0
B131: BAAS-small **** | D131: =BAAS_small.fee_EUR -> 489.5 | F131: =BAAS_small_EUR -> 0.15575 | H131: 0 | I131: GB | J131: 0.75 | M131: =IF(H131>0,IF(SUM($D$131+($F$131*((H131*(1-$J$131))-1000)))<=D131,$D$131,$D$131+($F$131*((H131*(1-$J$131))-1000))),0) -> 0
B132: BAAS-large *** | D132: =BAAS_large.fee_EUR -> 845.5 | F132: =BAAS_large_EUR -> 0.08188 | H132: 0 | I132: GB | J132: 0.75 | M132: =IF(H132>0,$D$132+($F$132*(H132*(1-$J$132))),0) -> 0
B133: Total | H133: =SUM(H130:H132)&" GB" -> 0 GB | M133: =SUM(M130:M132) -> 0
B135: * Deduplication is a data reduction done in the service. Depending on the data, it usually varies between 45% -90%
B136: ** The price is per protected GB on the client.
B137: *** The price is per GB stored in the service after deduplication and compression.
B138: **** The price is per GB stored in the service after deduplication and compression. The service includes 1000GB in the fixed monthly price.
B143: Network and software
B146: All prices are in EUR, excluding VAT.
B149: Network
B150: Product ID | C150: Type | E150: Description | K150: Charge per | L150: Monthly
B151: NET-publicv4 | C151: IPv4 | E151: Public | K151: IP-adress | L151: =NET_publicv4_EUR -> 2.225
B152: NET-publicv6 | C152: IPv6 | E152: Public | K152: N/A | L152: =NET_publicv6_EUR -> 0
B153: NET-ingress | C153: Data transfer | K153: GB | L153: =NET_ingress_EUR -> 0
B154: NET-egress | C154: Data transfer | E154: 1 TB / month included per project (no charges for the academic sector) | K154: GB | L154: =NET_egress_EUR -> 0
B155: NET-mgn.slb | C155: Managed SLB | K155: Instance | L155: =NET_mgn.slb_EUR -> Request a quote
B156: NET-rdns | C156: Reverse DNS names | K156: N/A | L156: =NET_rdns_EUR -> 0
B157: NET-byoip | C157: Bring your own IP prefixes | K157: N/A | L157: =NET_byoip_EUR -> 0
B160: Product ID | E160: Description | K160: Charge per | L160: Monthly
B161: SW-win.ser.2016 | E161: Windows Server 2016 | K161: vCPU | L161: =SW_win.ser.201X_EUR -> 15.575
B162: SW-win.ser.2019 | E162: Windows Server 2019 | K162: vCPU | L162: =SW_win.ser.201X_EUR -> 15.575
B163: SW-ms.sql.ser | E163: Microsoft SQL Server | K163: vCPU | L163: =SW_ms.sql.ser_EUR -> 109.381
B164: SW-stackn | E164: STACKn (Machine Learning), supported by provider | K164: Instance | L164: =SW_stackn_EUR -> Request a quote
B165: SW-nextcloud | E165: Nextcloud Filesharing | K165: N/A | L165: =SW_nextcloud_EUR -> Request a quote
B166: SW-suse.linux | E166: SUSE Linux Enterprise Server, 12x5 Support | K166: N/A | L166: =SW_suse_EUR -> Request a quote
B167: SW-cluster.control | E167: Cluster Control Supported | K167: Instance | L167: =SW_cluster.control_EUR -> 3x instance price
B168: SW-backup.ninja | E168: Backup Ninja | K168: Databas | L168: =SW_backup.ninja_EUR -> 35.6
B171: Platform services
B172: Product ID | E172: Description | K172: Charge per | L172: Monthly
B173: PAAS-man.kubernetes24 | E173: Managed Compliant Kubernetes 24/7 | L173: =PAAS_man.kubernetes24_EUR -> Requests for quotation
B174: PAAS-man.kubernetes8 | E174: Managed Compliant Kubernetes 8/5 | L174: =PAAS_man.kubernetes8_EUR -> Requests for quotation
B175: PAAS-man.elasticsearch | E175: Managed Elasticsearch + Grafana service | K175: Instance | L175: =PAAS_man.elasticsearch_EUR -> Requests for quotation
B176: PAAS-man.redis | E176: Managed Redis | K176: Redis server | L176: =PAAS_man.redis_EUR -> Requests for quotation
B177: PAAS-man.nats | E177: Managed NATS | K177: Nats server | L177: =PAAS_man.nats_EUR -> Requests for quotation
B178: PAAS-man.mariadb | E178: Managed MariaDB | K178: Database | L178: =PAAS_man.mariadb_EUR -> Requests for quotation
B182: Support and consulting
B185: All prices are in EUR, excluding VAT.
B188: Support
B189: Product ID | E189: Description | K189: Charge per | L189: Monthly
B190: SUPPORT-iaas.base | E190: Base IaaS Support | K190: N/A | L190: 0
B191: SUPPORT-standard | E191: Access to backchannel chat room with support and engineering | K191: Total volume | L191: 3 % of total volume
B192: SUPPORT-premium | E192: Dedicated Service Manager with quarterly operations meetings | K192: Hour | L192: Ask for quote
E193: * The support fee is charged at 3 % of the total volume with a minimum fee of 150 Euro per month.
B195: Consulting
B196: Product ID | E196: Description | K196: Charge per | L196: Monthly
B197: PS-consult.jun | E197: Cloud Infrastructure Consultant, junior expertise level | K197: Hour | L197: =PS_consult.jun_EUR -> 100.303
B198: PS-consult.sen | E198: Cloud infrastructure Consultant, senior expertise level | K198: Hour | L198: =PS_consult.sen_EUR -> 122.286
B199: PS-cloudarch.jun | E199: Cloud Infrastructure Architect Consultant, junior expertise level | K199: Hour | L199: =PS_cloudarch.jun_EUR -> 113.653
B200: PS-cloudarch.sen | E200: Cloud Infrastructure Architect Consultant, senior expertise level | K200: Hour | L200: =PS_cloudarch.sen_EUR -> 122.286
B201: PS-pm.jun | E201: Project Manager, junior expertise level | K201: Hour | L201: =PS_pm.jun_EUR -> 101.371
B202: PS-pm.sen | E202: Project Manager, senior expertise level | K202: Hour | L202: =PS_pm.sen_EUR -> 122.286
B205: Training
B206: Product ID | C206: Duration | E206: Description | K206: Charge per | L206: Price
B207: TRAIN-intro.iaas | C207: One day | E207: Introduction to "infrastructure as a service" | K207: Occasion | L207: Ask for quote
B208: TRAIN-cxo.strategy | C208: One day | E208: Cloud strategy for top management | K208: Occasion | L208: Ask for quote
B209: TRAIN-intro.cloud | C209: Four days | E209: Introduction to cloud computing | K209: Occasion | L209: Ask for quote
B210: TRAIN-devops.microservices | C210: Four days | E210: Modern DevOps and microservices | K210: Occasion | L210: Ask for quote
B217: Calculated price
B220: All prices are in EUR, excluding VAT.
B222: Contact Safespring for a full quote
B223: Phone: +46 855 10 73 56
B224: sales@safespring.se
B226: Product | L226: Montly
B227: Safespring Compute | C227: =SUM(C38+C67)&" vCPU" -> 0 vCPU | D227: =SUM(D38+D67)&" GB RAM" -> 0 GB RAM | E227: =SUM(E38)&" GB Disk" -> 0 GB Disk | F227: =SUM(E67)&" GB NVME-Disk" -> 0 GB NVME-Disk | L227: =L76+L84+K67+K38+K91 -> 0
B228: Safespring Storage | L228: =#REF! -> 
B229: Safespring Backup | L229: =M133 -> 0
B230: Licenses (Microsoft) | L230: =M76+M84+#REF!+#REF! -> 
B231: Total | L231: =SUM(L227:L230) -> 

Sheet NOK - Safespring tjenester 2023
B5: Priskalkulator 02.27.2024
B8: Kontakt Safespring | D8: Valuta
B9: Telefon: +47 35 68 88 70
B10: hello@safespring.com
B15: Safespring Compute | IaaS
B18: Infrastruktur kan kjøres med en gratis Open Source-lisens eller med en Windows-lisens.
B19: Alle priser er oppgitt i NOK, eks mva.
B20: Instruksjoner: Angi ønsket antall i de fargede feltene.
B23: Flavors med lokal NVMe-disk
B24: Sentral blokklagring kan kjøpes til innsatsene. Se "Sentral blokklagring" i prislisten.
B25: Produkt ID | C25: vCPU | D25: RAM (GB) | E25: Lokal disk (GB) | F25: Per time | G25: Per 30 dager | I25: Antall | K25: Infrastruktur
B26: ='SEK - Safesprings tjänster 2023'!B26 -> FLAVOR-l2. c2 r4. 100 | C26: ='SEK - Safesprings tjänster 2023'!C26 -> 2 | D26: ='SEK - Safesprings tjänster 2023'!D26 -> 4 | E26: ='SEK - Safesprings tjänster 2023'!E26 -> 100 | F26: =G26/720 -> 0.6666666667 | G26: =C26*IAAS_vcpu_SEK+D26*IAAS_ram_SEK+E26*IAAS_nvme_SEK -> 480 | K26: =ROUNDUP(I26*G26,2) -> 0
B27: ='SEK - Safesprings tjänster 2023'!B27 -> FLAVOR-l2. c2 r4. 500 | C27: ='SEK - Safesprings tjänster 2023'!C27 -> 2 | D27: ='SEK - Safesprings tjänster 2023'!D27 -> 4 | E27: ='SEK - Safesprings tjänster 2023'!E27 -> 500 | F27: 1.222222222 | G27: 880 | K27: 0
B28: ='SEK - Safesprings tjänster 2023'!B28 -> FLAVOR-l2. c2 r4. 1000 | C28: ='SEK - Safesprings tjänster 2023'!C28 -> 2 | D28: ='SEK - Safesprings tjänster 2023'!D28 -> 4 | E28: ='SEK - Safesprings tjänster 2023'!E28 -> 1000 | F28: 1.916666667 | G28: 1380 | K28: 0
B29: ='SEK - Safesprings tjänster 2023'!B29 -> FLAVOR-l2. c4 r8. 100 | C29: ='SEK - Safesprings tjänster 2023'!C29 -> 4 | D29: ='SEK - Safesprings tjänster 2023'!D29 -> 8 | E29: ='SEK - Safesprings tjänster 2023'!E29 -> 100 | F29: 1.194444444 | G29: 860 | K29: 0
B30: ='SEK - Safesprings tjänster 2023'!B30 -> FLAVOR-l2. c4 r8. 500 | C30: ='SEK - Safesprings tjänster 2023'!C30 -> 4 | D30: ='SEK - Safesprings tjänster 2023'!D30 -> 8 | E30: ='SEK - Safesprings tjänster 2023'!E30 -> 500 | F30: 1.75 | G30: 1260 | K30: 0
B31: ='SEK - Safesprings tjänster 2023'!B31 -> FLAVOR-l2. c4 r8. 1000 | C31: ='SEK - Safesprings tjänster 2023'!C31 -> 4 | D31: ='SEK - Safesprings tjänster 2023'!D31 -> 8 | E31: ='SEK - Safesprings tjänster 2023'!E31 -> 1000 | F31: 2.444444444 | G31: 1760 | K31: 0
B32: ='SEK - Safesprings tjänster 2023'!B32 -> FLAVOR-l2. c8 r16. 100 | C32: ='SEK - Safesprings tjänster 2023'!C32 -> 8 | D32: ='SEK - Safesprings tjänster 2023'!D32 -> 16 | E32: ='SEK - Safesprings tjänster 2023'!E32 -> 100 | F32: 2.25 | G32: 1620 | K32: 0
B33: ='SEK - Safesprings tjänster 2023'!B33 -> FLAVOR-l2. c8 r16. 500 | C33: ='SEK - Safesprings tjänster 2023'!C33 -> 8 | D33: ='SEK - Safesprings tjänster 2023'!D33 -> 16 | E33: ='SEK - Safesprings tjänster 2023'!E33 -> 500 | F33: 2.805555556 | G33: 2020 | K33: 0
B34: ='SEK - Safesprings tjänster 2023'!B34 -> FLAVOR-l2. c8 r16. 1000 | C34: ='SEK - Safesprings tjänster 2023'!C34 -> 8 | D34: ='SEK - Safesprings tjänster 2023'!D34 -> 16 | E34: ='SEK - Safesprings tjänster 2023'!E34 -> 1000 | F34: 3.5 | G34: 2520 | K34: 0
B35: ='SEK - Safesprings tjänster 2023'!B35 -> FLAVOR-l2. c16 r32. 100 | C35: ='SEK - Safesprings tjänster 2023'!C35 -> 16 | D35: ='SEK - Safesprings tjänster 2023'!D35 -> 32 | E35: ='SEK - Safesprings tjänster 2023'!E35 -> 100 | F35: =G35/720 -> 4.361111111 | G35: =C35*IAAS_vcpu_SEK+D35*IAAS_ram_SEK+E35*IAAS_nvme_SEK -> 3140 | K35: =ROUNDUP(I35*G35,2) -> 0
B36: ='SEK - Safesprings tjänster 2023'!B36 -> FLAVOR-l2. c16 r32. 500 | C36: ='SEK - Safesprings tjänster 2023'!C36 -> 16 | D36: ='SEK - Safesprings tjänster 2023'!D36 -> 32 | E36: ='SEK - Safesprings tjänster 2023'!E36 -> 500 | F36: 4.916666667 | G36: 3540 | K36: 0
B37: ='SEK - Safesprings tjänster 2023'!B37 -> FLAVOR-l2. c16 r32. 1000 | C37: ='SEK - Safesprings tjänster 2023'!C37 -> 16 | D37: ='SEK - Safesprings tjänster 2023'!D37 -> 32 | E37: ='SEK - Safesprings tjänster 2023'!E37 -> 1000 | F37: 5.611111111 | G37: 4040 | K37: 0
B38: ='SEK - Safesprings tjänster 2023'!B38 -> FLAVOR-l2. c16 r64. 500 | C38: ='SEK - Safesprings tjänster 2023'!C38 -> 16 | D38: ='SEK - Safesprings tjänster 2023'!D38 -> 64 | E38: ='SEK - Safesprings tjänster 2023'!E38 -> 500 | F38: =G38/720 -> 7.361111111 | G38: =C38*IAAS_vcpu_SEK+D38*IAAS_ram_SEK+E38*IAAS_nvme_SEK -> 5300 | K38: =ROUNDUP(I38*G38,2) -> 0
B39: ='SEK - Safesprings tjänster 2023'!B39 -> FLAVOR-l2. c32 r64.1000 | C39: ='SEK - Safesprings tjänster 2023'!C39 -> 32 | D39: ='SEK - Safesprings tjänster 2023'!D39 -> 64 | E39: ='SEK - Safesprings tjänster 2023'!E39 -> 1000 | F39: 9.833333333 | G39: 7080 | K39: 0
B40: Totalt | C40: =SUM(C26:C39*I26:I39)&" st" -> 0 st | D40: =SUM(D26:D39*I26:I39)&" GB" -> 0 GB | E40: =SUM(E26:E39*I26:I39)&" GB" -> 0 GB | I40: =SUM(I26:I39)&" st" -> 0 st | K40: =SUM(K26:K39) -> 0
B44: Flavors utan lokal disk
B45: Sentral blokklagring kan kjøpes til instansene. Se "Sentral blokklagring" i prislisten.
B46: Produkt ID | C46: vCPU | D46: RAM (GB) | E46: Lokal disk (GB) | F46: Per time | G46: Per 30 dager | I46: Antall | K46: Infrastruktur
B47: ='SEK - Safesprings tjänster 2023'!B47 -> FLAVOR-b2. c1 r2 | C47: ='SEK - Safesprings tjänster 2023'!C47 -> 1 | D47: ='SEK - Safesprings tjänster 2023'!D47 -> 2 | E47: ='SEK - Safesprings tjänster 2023'!E47 -> 0 | F47: =G47/720 -> 0.2638888889 | G47: =C47*IAAS_vcpu_SEK+D47*IAAS_ram_SEK+E47*IAAS_ssd_SEK -> 190 | K47: =ROUNDUP(I47*G47,2) -> 0
B48: ='SEK - Safesprings tjänster 2023'!B48 -> FLAVOR-b2. c1 r4 | C48: ='SEK - Safesprings tjänster 2023'!C48 -> 1 | D48: ='SEK - Safesprings tjänster 2023'!D48 -> 4 | E48: ='SEK - Safesprings tjänster 2023'!E48 -> 0 | F48: 0.4166666667 | G48: 300 | K48: 0
B49: ='SEK - Safesprings tjänster 2023'!B49 -> FLAVOR-b2. c2 r4 | C49: ='SEK - Safesprings tjänster 2023'!C49 -> 2 | D49: ='SEK - Safesprings tjänster 2023'!D49 -> 4 | E49: ='SEK - Safesprings tjänster 2023'!E49 -> 0 | F49: 0.5277777778 | G49: 380 | K49: 0
B50: ='SEK - Safesprings tjänster 2023'!B50 -> FLAVOR-b2. c2 r8 | C50: ='SEK - Safesprings tjänster 2023'!C50 -> 2 | D50: ='SEK - Safesprings tjänster 2023'!D50 -> 8 | E50: ='SEK - Safesprings tjänster 2023'!E50 -> 0 | F50: 0.8333333333 | G50: 600 | K50: 0
B51: ='SEK - Safesprings tjänster 2023'!B51 -> FLAVOR-b2 .c4 r8 | C51: ='SEK - Safesprings tjänster 2023'!C51 -> 4 | D51: ='SEK - Safesprings tjänster 2023'!D51 -> 8 | E51: ='SEK - Safesprings tjänster 2023'!E51 -> 0 | F51: =G51/720 -> 1.055555556 | G51: =C51*IAAS_vcpu_SEK+D51*IAAS_ram_SEK+E51*IAAS_ssd_SEK -> 760 | K51: =ROUNDUP(I51*G51,2) -> 0
B52: ='SEK - Safesprings tjänster 2023'!B52 -> FLAVOR-b2. c4 r16 | C52: ='SEK - Safesprings tjänster 2023'!C52 -> 4 | D52: ='SEK - Safesprings tjänster 2023'!D52 -> 16 | E52: ='SEK - Safesprings tjänster 2023'!E52 -> 0 | F52: 1.666666667 | G52: 1200 | K52: 0
B53: ='SEK - Safesprings tjänster 2023'!B53 -> FLAVOR-b2. c8 r16 | C53: ='SEK - Safesprings tjänster 2023'!C53 -> 8 | D53: ='SEK - Safesprings tjänster 2023'!D53 -> 16 | E53: ='SEK - Safesprings tjänster 2023'!E53 -> 0 | F53: 2.111111111 | G53: 1520 | K53: 0
B54: ='SEK - Safesprings tjänster 2023'!B54 -> FLAVOR-b2. c8 r32 | C54: ='SEK - Safesprings tjänster 2023'!C54 -> 8 | D54: ='SEK - Safesprings tjänster 2023'!D54 -> 32 | E54: ='SEK - Safesprings tjänster 2023'!E54 -> 0 | F54: 3.333333333 | G54: 2400 | K54: 0
B55: ='SEK - Safesprings tjänster 2023'!B55 -> FLAVOR-b2. c16 r32 | C55: ='SEK - Safesprings tjänster 2023'!C55 -> 16 | D55: ='SEK - Safesprings tjänster 2023'!D55 -> 32 | E55: ='SEK - Safesprings tjänster 2023'!E55 -> 0 | F55: 4.222222222 | G55: 3040 | K55: 0
B56: ='SEK - Safesprings tjänster 2023'!B56 -> FLAVOR-b2. c16 r64 | C56: ='SEK - Safesprings tjänster 2023'!C56 -> 16 | D56: ='SEK - Safesprings tjänster 2023'!D56 -> 64 | E56: ='SEK - Safesprings tjänster 2023'!E56 -> 0 | F56: 6.666666667 | G56: 4800 | K56: 0
B57: Totalt | C57: =SUM(b2_list_vCPU*b2_list_Antal_instanser)&" st" -> 0 st | D57: =SUM(b2_list_ram*b2_list_vCPU)&" GB" -> 0 GB | E57: N/A | I57: =SUM(I47:I56)&" st" -> 0 st | K57: =SUM(K47:K56) -> 0
B59: Instanser med GPU och lokal disk (NVME-disk)
B60: Central blocklagring kan köpas till instansene. Se "Central blocklagring" i prislistan.
B61: Produkt ID | C61: CPU (p) core | D61: RAM (GB) | E61: NVME (GB) | F61: GPU | G61: Per timme | H61: Per 30 dagar | I61: Antal instanser | K61: Infrastruktur
B62: INSTANCE-glm.large.1d | C62: 4 | D62: 16 | E62: 250 | F62: 1 | G62: =H62/720 -> 9.652777778 | H62: =C62*IAAS_vcpu_SEK+D62*IAAS_ram_SEK+E62*IAAS_nvme_SEK+F62*IAAS_gpu_SEK -> 6950 | K62: =ROUNDUP(I62*H62,2) -> 0
B63: INSTANCE-glm.xlarge.2d | C63: 8 | D63: 32 | E63: 500 | F63: 2 | G63: 19.30555556 | H63: =C63*IAAS_vcpu_SEK+D63*IAAS_ram_SEK+E63*IAAS_nvme_SEK+F63*IAAS_gpu_SEK -> 13900 | K63: =ROUNDUP(I63*H63,2) -> 0
B64: INSTANCE-glm.2xlarge.4d | C64: 16 | D64: 64 | E64: 1000 | F64: 4 | G64: 38.61111111 | H64: =C64*IAAS_vcpu_SEK+D64*IAAS_ram_SEK+E64*IAAS_nvme_SEK+F64*IAAS_gpu_SEK -> 27800 | K64: =ROUNDUP(I64*H64,2) -> 0
B65: INSTANCE-glm.4xlarge.8d | C65: 32 | D65: 128 | E65: 1000 | F65: 6 | G65: 60.55555556 | H65: =C65*IAAS_vcpu_SEK+D65*IAAS_ram_SEK+E65*IAAS_nvme_SEK+F65*IAAS_gpu_SEK -> 43600 | K65: =ROUNDUP(I65*H65,2) -> 0
B66: Totalt | C66: =SUM(I62:I65*C62:C65)&" st" -> 0 st | D66: =SUM(I62:I65*D62:D65)&" GB" -> 0 GB | E66: =SUM(I62:I65*E62:E65)&" GB" -> 0 GB | F66: =SUM(I62:I65*F62:F65)&" st" -> 0 st | I66: =SUM(I62:I65)&" st" -> 0 st | K66: =SUM(K62:K65) -> 0
B69: Bare Metal Compute
B70: Central blocklagring kan köpas till instansene. Se "Central blocklagring" i prislistan.
B71: Produkt ID | C71: CPU (p) core | D71: RAM (GB) | E71: NVME (GB) | F71: Per timme | G71: Per 30 dagar | I71: Antal | K71: Infrastruktur
B72: INSTANCE-p1.2xlarge.16d | C72: 16 | D72: 128 | E72: 3800 | F72: =G72/720 -> 9.5 | G72: =INSTANCE_p1.2xlarge.16d_SEK -> 6840 | K72: =ROUNDUP(I72*G72,2) -> 0
B73: INSTANCE-p1.4xlarge.16d | C73: 32 | D73: 256 | E73: 3800 | F73: 19 | G73: =INSTANCE_p1.4xlarge.16d_SEK -> 13680 | K73: =ROUNDUP(I73*G73,2) -> 0
B74: INSTANCE-p1.8xlarge.32d | C74: 64 | D74: 512 | E74: 7600 | F74: 38 | G74: =INSTANCE_p1.8xlarge.32d_SEK -> 27360 | K74: =ROUNDUP(I74*G74,2) -> 0
B75: Totalt | C75: =SUM(I72:I74*C72:C74)&" st" -> 0 st | D75: =SUM(I72:I74*D72:D74)&" GB" -> 0 GB | E75: =SUM(I72:I74*E72:E74)&" GB" -> 0 GB | I75: =SUM(I72:I74)&" st" -> 0 st | K75: =SUM(K72:K74) -> 0
B78: Sentral blokklagring
B79: Sentral blokklagring gir tre kopier av dataene distribuert i en robust CEPH-klynge.
B80: Produkt ID | C80: Beskrivelse | F80: Per timme | G80: Per 30 dagar | I80: Antall (GB) | K80: Blokklagring
B81: VOLUME-large | C81: HDD-backed 3-replica Ceph | F81: =G81/720 -> 0.001666666667 | G81: =VOLUME_large_SEK -> 1.2 | K81: =ROUNDUP(I81*G81,2) -> 0
B82: VOLUME-fast | C82: SSD-backed 3-replica Ceph | F82: =G82/720 -> 0.005 | G82: =VOLUME_fast_SEK -> 3.6 | K82: =ROUNDUP(I82*G82,2) -> 0
B83: VOLUME-snapshot | C83: Snapshot of image | F83: =G83/720 -> 0.001666666667 | G83: =VOLUME_large_SEK -> 1.2 | K83: =ROUNDUP(I83*G83,2) -> 0
B84: Totalt | I84: =SUM(I81:I83)&" GB" -> 0 GB | K84: =SUM(K81:K83) -> 0
B87: Safespring Storage | S3
B90: Rask objektlagring med standard S3. (Arkiv er tilpasset lengre lagringstider)
B91: Kontakt oss for rabatter på større lagringsmengder. Prismodell basert på antall lagrede TB per måned.
B92: Instruksjoner: Angi ønsket antall i de fargede feltene.
B94: Produkt ID | G94: Per TB i 30 dager | I94: Antall (TB) | K94: Storage
B95: S3-archive | G95: =S3_archive.50_SEK -> 350 | K95: =I95*G95 -> 0
B96: S3-storage | G96: =S3_storage50_SEK -> 500 | K96: =I96*G96 -> 0
B97: Totalt | K97: =SUM(K95:K96) -> 0
B99: S3 Archive
B100: Produkt ID | C100: Antal TB | D100: Per TB/månad
B101: S3-archive | E101: =_xlfn.IFS(H101<50,D102,H101<100,D103,H101<500,D104,H101<1000,D105,H101>999,D106) -> 185 | H101: 600 | I101: TB | K101: =_xlfn.IFS(H101<1000,ROUNDUP(H101*E101,2),H101>999,E101) -> 111000
B102: S3-archive | C102: 0 - 49 | D102: =S3_archive.50_SEK -> 350
B103: S3-archive | C103: 50 - 99 | D103: =S3_archive.100_SEK -> 270
B104: S3-archive | C104: 100 - 499 | D104: =S3_archive.500_SEK -> 200
B105: S3-archive | C105: 500 - 999 | D105: =S3_archive.1000_SEK -> 185
B106: S3-archive | C106: 1000 - | D106: =S3_archive.quote_SEK -> Be om offert
B107: Totalt | K107: =K101 -> 111000
B110: Safespring Backup | SP
B113: Cloud backup-løsning for on-prem eller skyservere basert på Spectrum Protect (TSM).
B114: Alle priser er oppgitt i NOK, eks mva.
B115: Instruksjoner: Angi ønsket antall i de fargede feltene.
B117: Produkt ID | E117: Fast månedlig pris | G117: Per GB i 30 dager | I117: Antall (GB) | J117: Deduplisering 1 | K117: Pris
B118: BAAS-on.demand 2 | E118: N/A | G118: =BAAS_on.demand_SEK -> 2.45 | J118: N/A | K118: =ROUNDUP(I118*G118,2) -> 0
B119: BAAS-small 3 | E119: 5500 | G119: =BAAS_small_SEK -> 1.75 | J119: 0.75 | K119: =IF(I119>0,$E$119+($G$119*(I119*(1-$J$119))),0) -> 0
B120: BAAS-large 4 | E120: 9500 | G120: =BAAS_large_SEK -> 0.92 | J120: 0.75 | K120: =IF(I120>0,$E$120+($G$120*(I120*(1-$J$120))),0) -> 0
B121: Totalt | I121: =SUM(I118:I120)&" GB" -> 0 GB | K121: =SUM(K118:K120) -> 0
B125: Compliant Kubernetes
B128: Kjør Compliant Kubernetes som en administrert tjeneste. Safespring Compute vil bli lagt til.
B129: Safespring Compute vil bli lagt til. Vi kan samarbeide med deg for å beregne prisen.
B130: Instruksjoner: Gjør et valg i de fargede feltene.
B132: Produkt ID | C132: Støttetider | E132: Tilgjengelighet | G132: Fast månedlig pris | K132: Pris
B133: PAAS-man.kubernetes8 | C133: 08:00 - 17:00 | E133: Hverdager | G133: 15000 | J133: 2 | K133: =IF(J133=1,G133," ") -> 
B134: PAAS-man.kubernetes24 | C134: Døgnet rundt | E134: Alle dager | G134: 24000 | K134: =IF(J133=3,G134," ") -> 
B135: Totalt | K135: =SUM(K133:K134) -> 0
B139: Nettverk og programvare
B142: Alle priser er oppgitt i NOK, eks mva.
B145: Nettverk
B146: Safespring tilbyr flere nettverkstjenester.
B147: Produkt ID | C147: Type | E147: Beskrivelse | J147: Fakturering pr | K147: Per måned
B148: NET-publicv4 | C148: IPv4 | E148: Public | J148: IP-adress | K148: =NET_publicv4_SEK -> 25
B149: NET-publicv6 | C149: IPv6 | E149: Public | J149: N/A | K149: =NET_publicv6_SEK -> 0
B150: NET-ingress | C150: Datatrafikk | J150: GB | K150: =NET_ingress_SEK -> 0
B151: NET-egress | C151: Datatrafikk | J151: GB | K151: =NET_egress_SEK -> 0
B152: NET-mgn.slb | C152: Managed SLB | E152: Lastbalansere som krever egne servere | J152: Instans | K152: Tilbud
B153: NET-rdns | C153: Reverse DNS names | J153: N/A | K153: =NET_rdns_SEK -> 0
B154: NET-byoip | C154: Bring your own IP prefixes | J154: N/A | K154: 0
B158: Programvare og lisenser
B159: Safespring tilbyr flere programvare og lisenser.
B160: Produkt ID | E160: Beskrivelse | J160: Fakturering pr | K160: Per måned
B161: SW-win.ser.2022 | E161: Windows Server | J161: vCPU | K161: =SW_win.ser.201X_SEK -> 175
B162: SW-ms.sql.ser | E162: Windows SQL Server standard | J162: vCPU | K162: =SW_ms.sql.ser_SEK -> 1229
B163: SW-ms.sql.ser.ent | E163: Windows SQL Server Enterprise | J163: vCPU | K163: =SW_ms.sql.ser.ent_SEK -> 4766
B164: SW-nextcloud | E164: Nextcloud Filesharing | J164: N/A | K164: Tillbud
B165: SW-suse.linux | E165: SUSE Linux Enterprise Server, 12x5 Support | J165: N/A | K165: Tillbud
B169: Plattformtjenester
B170: Safespring tilbyr flere plattformtjenester.
B171: Produkt ID | E171: Beskrivelse | K171: Per måned
B172: PAAS-man.kubernetes24 | E172: Managed Compliant Kubernetes 24/7 | K172: Tilbud
B173: PAAS-man.kubernetes8 | E173: Managed Compliant Kubernetes 8/5 | K173: Tilbud
B174: PAAS-man.elasticsearch | E174: Managed Elasticsearch (ingår i Compliant Kubernetes) | K174: Tilbud
B175: PAAS-openshift | E175: Ej support | K175: Tilbud
B176: PAAS-jupyter.notebook | E176: Single basic Jupyter notebook with 1 lab, 8vCPU/16GB RAM virtual machine | K176: 5650
B177: PAAS-man.nats | E177: Managed NATS | K177: Tilbud
B178: PAAS-man.mariadb | E178: Managed MariaDB | K178: Tilbud
B179: PAAS-man.redis | E179: Managed Redis | K179: Tilbud
B183: Support og konsulenttjenester
B186: Support gjelder Safespring Compute, Safespring Storage og Safespring Backup.
B187: Alla priser angivna i SEK, exklusive moms.
B189: Support
B190: Safespring tilbyr flere støtteavtaler.
B191: Produkt ID | D191: Beskrivelse | I191: Fakturering pr | K191: Pris
B192: SUPPORT-base | D192: Support för Safesprings tjänster | I192: N/A | K192: 0
B193: SUPPORT-standard | D193: Access to backchannel chat room with support and engineering | I193: Total volym | K193: 3 % av totalt volym 5
B194: SUPPORT-premium | D194: Dedicated Service Manager with quarterly operations meetings | I194: Timme | K194: Tilbud
B197: Konsulttjenester
B198: Safespring tilbyr flere konsulttjenester.
B199: Produkt ID | D199: Beskrivelse | I199: Fakturering pr | K199: Pris
B200: PS-consult.jun | D200: Cloud Infrastructure Consultant, junior expertise level | I200: Timme | K200: =PS_consult.jun_SEK -> 1127
B201: PS-consult.sen | D201: Cloud infrastructure Consultant, senior expertise level | I201: Timme | K201: =PS_consult.sen_SEK -> 1374
B202: PS-cloudarch.jun | D202: Cloud Infrastructure Architect Consultant, junior expertise level | I202: Timme | K202: =PS_cloudarch.jun_SEK -> 1277
B203: PS-cloudarch.sen | D203: Cloud Infrastructure Architect Consultant, senior expertise level | I203: Timme | K203: =PS_cloudarch.sen_SEK -> 1374
B204: PS-pm.jun | D204: Project Manager, junior expertise level | I204: Timme | K204: =PS_pm.jun_SEK -> 1139
B205: PS-pm.sen | D205: Project Manager, senior expertise level | I205: Timme | K205: =PS_pm.sen_SEK -> 1374
B208: Utbildningar
B209: Safespring tilbyr flere utdanninger innen IaaS og molntjenester.
B210: Produkt ID | D210: Beskrivelse | G210: Längd | I210: Fakturering pr | K210: Pris
B211: COURSE-intro.iaas | D211: Introduktion till "infrastruktur som tjänst" | G211: En dag | I211: Mulighet | K211: Tilbud
B212: COURSE-cxo.strategy | D212: Molnstrategi för ledningsgrupper, | G212: En dag | I212: Mulighet | K212: Tilbud
B213: COURSE-intro.cloud | D213: Introduktion till moln-infrastrukturteknik, | G213: Fire dager | I213: Mulighet | K213: Tilbud
B214: COURSE-devops.microservices | D214: Modern DevOps och "microservices" | G214: Fire dager | I214: Mulighet | K214: Tilbud
B221: Månedlig kostnad
B224: Alle priser er oppgitt i NOK, eks mva.
B226: Kontakt Safespring for et komplett tilbud
B227: Telefon: 35 68 88 70
B228: hello@safespring.com
B230: Produkt | J230: Månedlig kostnad
B231: Safespring Compute | C231: =SUM(I26:I37*C26:C37)+SUM(I47:I56*b2_list_Antal_instanser)+SUM(I62:I65*C62:C65)+SUM(I72:I74*C72:C74)&" vCPU"&" / "&SUM(I26:I37*E26)+SUM(b2_list_vCPU*b2_list_ram)+SUM(I62:I65*D62:D65)+SUM(I72:I74*D72:D74)&" GB RAM"&" / "&SUM(I26:I37*E26:E37)+SUM(b2_list_vCPU*E47:E56)+SUM(I62:I65*E62:E65)+SUM(I72:I74*E72:E74)&" GB NVME"&" / "&SUM(I81:I83)&" GB Blocklagring" -> 0 vCPU / 0 GB RAM / 0 GB NVME / 0 GB Blocklagring | J231: =K66+K75+K57+K40+K84 -> 0
B232: Safespring Storage | C232: =K96&" TB - S3"&" / "&K95&" TB - Archive" -> 0 TB - S3 / 0 TB - Archive | J232: =K97 -> 0
B233: Safespring Backup | J233: =K121 -> 0
B234: Totalt | J234: =SUM(J231:J233) -> 0
B239: 1 Dedup er en datareduksjon gjort i tjenesten. Avhengig av dataene varierer det normalt mellom 45 % -90 %
B240: 2 Prisen er per beskyttet GB på klienten.
B241: 3 Prisen er per lagret GB i tjenesten etter deduplisering og komprimering. 1000 GB er inkludert i den faste månedsprisen.
B242: 4 Prisen er per lagret GB i tjenesten etter deduplisering og komprimering.
B243: 5 The support fee is charged at 3 % of the total volume with a minimum fee of 1500 SEK per month.

Sheet NOK - Safesprings tjeneste 2021 (hidden)
B5: Priskalkulator 04.01.2022
B8: Kontakt Safespring | D8: Valuta
B9: Telefon: +47 35 68 88 70
B10: sales@safespring.se
D11: ="1 SEK = "&NOK&" NOK" -> 1 SEK = 1 NOK
B15: Safespring Compute
B18: Infrastruktur kan kjøres med en gratis opensource-lisens eller med en Windows-lisens.
B19: Alle priser er oppgitt i NOK, eksklusiv mva.
B20: Instruksjoner: Angi ønsket antall i de fargede feltene.
B23: Instanser med sentral blokklagring
B24: Produkt ID | C24: vCPU | D24: RAM (GB) | E24: Disk (GB) | G24: Per time | H24: Per måned | I24: Antall instanser | K24: Infrastruktur
B25: INSTANCE-b.tiny | C25: 1 | D25: 1 | E25: 40 | G25: =H25/720 -> 0.3875 | H25: =C25*IAAS_vcpu_SEK+D25*IAAS_ram_SEK+E25*IAAS_ssd_SEK -> 279 | J25: Instanser | K25: =ROUNDUP(I25*H25,2) -> 0
B26: INSTANCE-b.small | C26: 1 | D26: 2 | E26: 40 | G26: 0.4638888889 | H26: =C26*IAAS_vcpu_SEK+D26*IAAS_ram_SEK+E26*IAAS_ssd_SEK -> 334 | J26: Instanser | K26: 0
B27: INSTANCE-b.medium | C27: 2 | D27: 4 | E27: 40 | G27: 0.7277777778 | H27: 524 | J27: Instanser | K27: 0
B28: INSTANCE-b.large | C28: 4 | D28: 8 | E28: 40 | G28: 1.255555556 | H28: 904 | J28: Instanser | K28: 0
B29: INSTANCE-b.xlarge | C29: 8 | D29: 16 | E29: 40 | G29: 2.311111111 | H29: 1664 | J29: Instanser | K29: 0
B30: INSTANCE-b.2xlarge | C30: 16 | D30: 32 | E30: 40 | G30: 4.422222222 | H30: 3184 | J30: Instanser | K30: 0
B31: INSTANCE-m.small | C31: 1 | D31: 4 | E31: 40 | G31: 0.6166666667 | H31: 444 | J31: Instanser | K31: 0
B32: INSTANCE-m.medium | C32: 2 | D32: 8 | E32: 40 | G32: 1.033333333 | H32: 744 | J32: Instanser | K32: 0
B33: INSTANCE-m.large | C33: 4 | D33: 16 | E33: 40 | G33: 1.866666667 | H33: 1344 | J33: Instanser | K33: 0
B34: INSTANCE-m.xlarge | C34: 8 | D34: 32 | E34: 40 | G34: 3.533333333 | H34: 2544 | J34: Instanser | K34: 0
B35: INSTANCE-m.2xlarge | C35: 16 | D35: 64 | E35: 40 | G35: 6.866666667 | H35: 4944 | J35: Instanser | K35: 0
B36: INSTANCE-m.4xlarge | C36: 32 | D36: 128 | E36: 40 | G36: =H36/720 -> 13.53333333 | H36: =C36*IAAS_vcpu_SEK+D36*IAAS_ram_SEK+E36*IAAS_ssd_SEK -> 9744 | J36: Instanser | K36: 0
B37: INSTANCE-m.8xlarge | C37: 64 | D37: 256 | E37: 40 | G37: 26.86666667 | H37: 19344 | J37: Instanser | K37: 0
B38: Totalt | C38: =SUM(C25:C37*I25:I37) -> 0 | D38: =SUM(D25:D37*I25:I37) -> 0 | E38: =SUM(E25:E37*I25:I37) -> 0 | I38: =SUM(I25:I37)&" st" -> 0 st | K38: =SUM(K25:K35) -> 0
B41: Instanser med lokal lagring (NVMe-disk)
B42: Produkt ID | C42: vCPU | D42: RAM (GB) | E42: Disk (GB) | G42: Per time | H42: Per måned | I42: Antall instanser | K42: Infrastruktur
B43: INSTANCE-lb.tiny | C43: 1 | D43: 1 | E43: 10 | G43: =H43/720 -> 0.2013888889 | H43: =C43*IAAS_vcpu_SEK+D43*IAAS_ram_SEK+E43*IAAS_nvme_SEK -> 145 | J43: Instanser | K43: =ROUNDUP(I43*H43,2) -> 0
B44: INSTANCE-lb.small | C44: 1 | D44: 2 | E44: 20 | G44: 0.2916666667 | H44: 210 | J44: Instanser | K44: 0
B45: INSTANCE-lb.medium.1d | C45: 2 | D45: 4 | E45: 250 | G45: 0.875 | H45: 630 | J45: Instanser | K45: 0
B46: INSTANCE-lb.large.1d | C46: 4 | D46: 8 | E46: 250 | G46: 1.402777778 | H46: 1010 | J46: Instanser | K46: 0
B47: INSTANCE-lb.xlarge.1d | C47: 8 | D47: 16 | E47: 250 | G47: 2.458333333 | H47: 1770 | J47: Instanser | K47: 0
B48: INSTANCE-lb.2xlarge.1d | C48: 16 | D48: 32 | E48: 250 | G48: 4.569444444 | H48: 3290 | J48: Instanser | K48: 0
B49: INSTANCE-lb.2xlarge.2d | C49: 16 | D49: 32 | E49: 500 | G49: 4.916666667 | H49: 3540 | J49: Instanser | K49: 0
B50: INSTANCE-lb.2xlarge.4d | C50: 16 | D50: 32 | E50: 1000 | G50: 5.611111111 | H50: 4040 | J50: Instanser | K50: 0
B51: INSTANCE-lb.4xlarge.1d | C51: 32 | D51: 64 | E51: 250 | G51: 8.791666667 | H51: 6330 | J51: Instanser | K51: 0
B52: INSTANCE-lb.4xlarge.2d | C52: 32 | D52: 64 | E52: 500 | G52: 9.138888889 | H52: 6580 | J52: Instanser | K52: 0
B53: INSTANCE-lb.4xlarge.4d | C53: 32 | D53: 64 | E53: 1000 | G53: 9.833333333 | H53: 7080 | J53: Instanser | K53: 0
B54: INSTANCE-lm.small | C54: 1 | D54: 4 | E54: 20 | G54: 0.4444444444 | H54: 320 | J54: Instanser | K54: 0
B55: INSTANCE-lm.medium.1d | C55: 2 | D55: 8 | E55: 250 | G55: 1.180555556 | H55: 850 | J55: Instanser | K55: 0
B56: INSTANCE-lm.large.1d | C56: 4 | D56: 16 | E56: 250 | G56: 2.013888889 | H56: 1450 | J56: Instanser | K56: 0
B57: INSTANCE-lm.xlarge.1d | C57: 8 | D57: 32 | E57: 250 | G57: 3.680555556 | H57: 2650 | J57: Instanser | K57: 0
B58: INSTANCE-lm.xlarge.2d | C58: 8 | D58: 32 | E58: 500 | G58: =H58/720 -> 4.027777778 | H58: =C58*IAAS_vcpu_SEK+D58*IAAS_ram_SEK+E58*IAAS_nvme_SEK -> 2900 | J58: Instanser | K58: 0
B59: INSTANCE-lm.xlarge.4d | C59: 8 | D59: 32 | E59: 1000 | G59: 4.722222222 | H59: 3400 | J59: Instanser | K59: 0
B60: INSTANCE-lm.2xlarge.1d | C60: 16 | D60: 64 | E60: 250 | G60: 7.013888889 | H60: 5050 | J60: Instanser | K60: 0
B61: INSTANCE-lm.2xlarge.2d | C61: 16 | D61: 64 | E61: 500 | G61: 7.361111111 | H61: 5300 | J61: Instanser | K61: 0
B62: INSTANCE-lm.2xlarge.4d | C62: 16 | D62: 64 | E62: 1000 | G62: 8.055555556 | H62: 5800 | J62: Instanser | K62: 0
B63: INSTANCE-lm.4xlarge.1d | C63: 32 | D63: 128 | E63: 250 | G63: 13.68055556 | H63: 9850 | J63: Instanser | K63: 0
B64: INSTANCE-lm.4xlarge.2d | C64: 32 | D64: 128 | E64: 500 | G64: 14.02777778 | H64: 10100 | J64: Instanser | K64: 0
B65: INSTANCE-lm.4xlarge.4d | C65: 32 | D65: 128 | E65: 1000 | G65: 14.72222222 | H65: 10600 | J65: Instanser | K65: 0
B66: INSTANCE-lm.8xlarge.4d | C66: 64 | D66: 256 | E66: 1000 | G66: =H66/720 -> 28.05555556 | H66: =C66*IAAS_vcpu_SEK+D66*IAAS_ram_SEK+E66*IAAS_nvme_SEK -> 20200 | J66: Instanser | K66: 0
B67: Totalt | C67: =SUM(C43:C66*I43:I66) -> 0 | D67: =SUM(D43:D66*I43:I66) -> 0 | E67: =SUM(E43:E66*I43:I66) -> 0 | I67: =SUM(I43:I66)&" st" -> 0 st | K67: =SUM(K43:K65) -> 0
B70: Instanser med GPU og lokal lagring (NVME-disk)
B71: Produkt ID | C71: CPU (p) core | D71: RAM (GB) | E71: NVME (GB) | F71: GPU | G71: Per time | H71: Per måned | I71: Antall instanser | J71: Windows-lisenser | L71: Infrastruktur | M71: Lisenser
B72: INSTANCE-glm.large.1d | C72: 4 | D72: 16 | E72: 250 | F72: 1 | G72: =H72/720 -> 9.652777778 | H72: =C72*IAAS_vcpu_SEK+D72*IAAS_ram_SEK+E72*IAAS_nvme_SEK+F72*IAAS_gpu_SEK -> 6950 | K72: =J63 -> Instanser | L72: =ROUNDUP(I72*H72,2) -> 0 | M72: =J72*C72*SW_win.ser.201X_SEK -> 0
B73: INSTANCE-glm.xlarge.2d | C73: 8 | D73: 32 | E73: 500 | F73: 2 | G73: 19.30555556 | H73: =C73*IAAS_vcpu_SEK+D73*IAAS_ram_SEK+E73*IAAS_nvme_SEK+F73*IAAS_gpu_SEK -> 13900 | K73: Instanser | L73: =ROUNDUP(I73*H73,2) -> 0 | M73: =J73*C73*SW_win.ser.201X_SEK -> 0
B74: INSTANCE-glm.2xlarge.4d | C74: 16 | D74: 64 | E74: 1000 | F74: 4 | G74: 38.61111111 | H74: =C74*IAAS_vcpu_SEK+D74*IAAS_ram_SEK+E74*IAAS_nvme_SEK+F74*IAAS_gpu_SEK -> 27800 | K74: =J65 -> Instanser | L74: =ROUNDUP(I74*H74,2) -> 0 | M74: =J74*C74*SW_win.ser.201X_SEK -> 0
B75: INSTANCE-glm.4xlarge.8d | C75: 32 | D75: 128 | E75: 1000 | F75: 6 | G75: 60.55555556 | H75: =C75*IAAS_vcpu_SEK+D75*IAAS_ram_SEK+E75*IAAS_nvme_SEK+F75*IAAS_gpu_SEK -> 43600 | K75: Instanser | L75: =ROUNDUP(I75*H75,2) -> 0 | M75: =J75*C75*SW_win.ser.201X_SEK -> 0
B76: Totalt | I76: =SUM(I72:I75)&" st" -> 0 st | J76: =SUM(J72:J75)&" st" -> 0 st | L76: =SUM(L72:L75) -> 0 | M76: =SUM(M72:M75) -> 0
B79: "Bare Metal" compute
B80: Produkt ID | C80: CPU (p) core | D80: RAM (GB) | E80: NVME (GB) | G80: Per time | H80: Per måned | I80: Antall instanser | J80: Windows-lisenser | L80: Infrastruktur | M80: Lisenser
B81: INSTANCE-p1.2xlarge.16d | C81: 16 | D81: 128 | E81: 3800 | G81: =H81/720 -> 9.5 | H81: =INSTANCE_p1.2xlarge.16d_SEK -> 6840 | K81: Instanser | L81: =ROUNDUP(I81*H81,2) -> 0 | M81: =J81*C81*SW_win.ser.201X_SEK -> 0
B82: INSTANCE-p1.4xlarge.16d | C82: 32 | D82: 256 | E82: 3800 | G82: 19 | H82: =INSTANCE_p1.4xlarge.16d_SEK -> 13680 | K82: =K81 -> Instanser | L82: =ROUNDUP(I82*H82,2) -> 0 | M82: =J82*C82*SW_win.ser.201X_SEK -> 0
B83: INSTANCE-p1.8xlarge.32d | C83: 64 | D83: 512 | E83: 7600 | G83: 38 | H83: =INSTANCE_p1.8xlarge.32d_SEK -> 27360 | K83: Instanser | L83: =ROUNDUP(I83*H83,2) -> 0 | M83: =J83*C83*SW_win.ser.201X_SEK -> 0
B84: Totalt | I84: =SUM(I81:I83)&" st" -> 0 st | J84: =SUM(J81:J83)&" st" -> 0 st | L84: =SUM(L81:L83) -> 0 | M84: =SUM(M81:M83) -> 0
B87: Ekstra lagring
B88: Produkt ID | C88: Beskrivelse | E88: Per time | F88: Per GB/måned | I88: Ekstra GB | K88: Pris
B89: VOLUME-large | C89: HDD-backed 3-replica Ceph | E89: =F89/720 -> 0.001666666667 | F89: =VOLUME_large_SEK -> 1.2 | J89: GB | K89: =ROUNDUP(I89*F89,2) -> 0
B90: VOLUME-fast | C90: SSD-backed 3-replica Ceph | E90: =F90/720 -> 0.005 | F90: =VOLUME_fast_SEK -> 3.6 | J90: GB | K90: =ROUNDUP(I90*F90,2) -> 0
B91: Totalt | I91: =SUM(I89:I90)&" GB" -> 0 GB | K91: =SUM(K89:K90) -> 0
B95: Safespring Storage
B98: Objektlagring med standard S3.
B99: Prismodell basert på antall lagrede TB, se tabellen nedenfor.
B100: Instruksjoner: Fyll ut ønsket mengde i de fargede feltene.
B102: Produkt ID | C102: Antall TB | D102: Per TB/måned
B103: S3-storage | C103: 0 - 50 | D103: =S3_storage.50_SEK -> 350
B104: S3-storage | C104: 51 - 100 | D104: =S3_storage.100_SEK -> 270
B105: S3-storage | C105: 101 - 500 | D105: =S3_storage.500_SEK -> 200
B106: S3-storage | C106: 501 - 1000 | D106: =S3_storage.1000_SEK -> 185
B107: S3-storage | C107: 1001 - | D107: =S3_storage.quote_SEK -> Be om offert
B110: Produkt ID | F110: Per TB/måned | H110: Antall TB | M110: Pris
B111: S3-storage | F111: =_xlfn.IFS(H111<51,D103,H111<101,D104,H111<501,D105,H111<1001,D106,H111>1000,D107) -> 350 | I111: TB | M111: =_xlfn.IFS(H111<1001,ROUNDUP(H111*F111,2),H111>1000,D107) -> 0
B112: Totalt | M112: =SUM(M111) -> 0
B116: Safespring Backup
B119: Cloud backup-løsning for lokale servere eller skyservere basert på Spectrum Protect.
B120: Alle priser er oppgitt i NOK, eksklusiv mva.
B121: Instruksjoner: Fyll ut ønsket mengde i de fargede feltene.
B123: Produkt ID | C123: Fast månedlig pris | E123: Per time | F123: Per GB/måned | H123: Antal GB | J123: Deduplisering* | M123: Pris
B124: BAAS-on.demand ** | D124: N/A | E124: N/A | F124: =BAAS_on.demand_SEK -> 2.45 | I124: GB | J124: N/A | M124: =ROUNDUP(H124*F124,2) -> 0
B125: BAAS-small **** | D125: 5500 | E125: N/A | F125: =BAAS_small_SEK -> 1.75 | I125: GB | J125: 0.75 | M125: =IF(H125>0,IF(SUM($D$125+($F$125*((H125*(1-$J$125))-1000)))<=D125,$D$125,$D$125+($F$125*((H125*(1-$J$125))-1000))),0) -> 0
B126: BAAS-large *** | D126: 9500 | E126: N/A | F126: =BAAS_large_SEK -> 0.92 | I126: GB | J126: 0.75 | M126: =IF(H126>0,$D$126+($F$126*(H126*(1-$J$126))),0) -> 0
B127: Totalt | H127: =SUM(H124:H126)&" GB" -> 0 GB | M127: =SUM(M124:M126) -> 0
B129: * Dedup er en datareduksjon som er gjort i tjenesten. Avhengig av data varierer det normalt mellom 45% -90%
B130: ** Prisen er per beskyttet GB på klienten.
B131: *** Prisen er per lagret GB i tjenesten etter deduplisering og komprimering.
B132: **** Prisen er per lagret GB i tjenesten etter deduplisering og komprimering. 1000 GB er inkludert i den faste månedlige prisen.
B137: Nettverk og programvare
B140: Alle priser er oppgitt i NOK, eksklusiv mva.
B143: Nettverk
B144: Produkt ID | C144: Type | E144: Beskrivelse | L144: Pris per | M144: Per måned
B145: NET-publicv4 | C145: IPv4 | E145: Publik | L145: IP adresse | M145: =NET_publicv4_SEK -> 25
B146: NET-publicv6 | C146: IPv6 | E146: Publik | L146: N/A | M146: =NET_publicv6_SEK -> 0
B147: NET-ingress | C147: Datatrafikk | L147: GB | M147: =NET_ingress_SEK -> 0
B148: NET-egress | C148: Datatrafikk | E148: 1 TB / måned inkludert per prosjekt (gratis i akademisk sektor) | L148: GB | M148: =NET_egress_SEK -> 0
B149: NET-mgn.slb | C149: Managed SLB | L149: Instans | M149: =NET_mgn.slb_SEK -> Begär offert
B150: NET-rdns | C150: Reverse DNS names | L150: N/A | M150: =NET_rdns_SEK -> 0
B151: NET-byoip | C151: Bring your own IP prefixes | L151: N/A | M151: =NET_byoip_SEK -> 0
B153: Programvare og lisenser
B154: Produkt ID | C154: Type | E154: Beskrivelse | L154: Pris per | M154: Per måned
B155: SW-win.ser.2016 | E155: Windows Server 2016 | L155: vCPU | M155: =SW_win.ser.201X_SEK -> 175
B156: SW-win.ser.2019 | E156: Windows Server 2019 | L156: vCPU | M156: =SW_win.ser.201X_SEK -> 175
B157: SW-ms.sql.ser | E157: Microsft SQL Server | L157: vCPU | M157: =SW_ms.sql.ser_SEK -> 1229
B158: SW-stackn | E158: STACKn (Machine Learning), supported by provider | L158: Instanse | M158: =SW_stackn_SEK -> Begär offert
B159: SW-nextcloud | E159: Nextcloud Filesharing | L159: N/A | M159: =SW_nextcloud_SEK -> Begär offert
B160: SW-suse.linux | E160: SUSE Linux Enterprise Server, 12x5 Support | L160: N/A | M160: =SW_suse_SEK -> Begär offert
B161: SW-cluster.control | E161: Cluster Control Supported | L161: N/A | M161: =SW_cluster.control_SEK -> 3x instanspris
B162: SW-backup.ninja | E162: Backup Ninja | L162: Database | M162: =SW_backup.ninja_SEK -> 400
B165: Plattformstjänster
B166: Produkt ID | E166: Beskrivelse | M166: Per måned
B167: PAAS-man.kubernetes24 | E167: Managed Compliant Kubernetes 24/7 | M167: =PAAS_man.kubernetes24_SEK -> Begär offert
B168: PAAS-man.kubernetes8 | E168: Managed Compliant Kubernetes 8/5 | M168: =PAAS_man.kubernetes8_SEK -> Begär offert
B169: PAAS-man.elasticsearch | E169: Managed Elasticsearch | M169: Forespørsel om tilbud
B170: PAAS-man.redis | E170: Managed Redis | M170: Forespørsel om tilbud
B171: PAAS-man.nats | E171: Managed NATS | M171: Forespørsel om tilbud
B172: PAAS-man.mariadb | E172: Managed MariaDB | M172: Forespørsel om tilbud
B176: Support og konsulenttjenester
B179: Alle priser er oppgitt i NOK, eksklusiv mva.
B182: Support
B183: Produkt ID | D183: Beskrivelse | K183: Lading per | M183: Pris
B184: SUPPORT-iaas.base | D184: Base IaaS Support | K184: N/A | M184: 0
B185: SUPPORT-standard | D185: Access to backchannel chat room with support and engineering | K185: Total volym | M185: 3 % av total volym
B186: SUPPORT-premium | D186: Dedicated Service Manager with quarterly operations meetings | K186: Time | M186: Pris på forespørsel
D187: * The support fee is charged at 3 % of the total volume with a minimum fee of 1500 SEK per month.
B189: Konsulenttjenester
B190: Produkt ID | D190: Beskrivelse | K190: Lading per | M190: Pris
B191: PS-consult.jun | D191: Cloud Infrastructure Consultant, junior expertise level | K191: Time | M191: =PS_consult.jun_SEK -> 1127
B192: PS-consult.sen | D192: Cloud infrastructure Consultant, senior expertise level | K192: Time | M192: =PS_consult.sen_SEK -> 1374
B193: PS-cloudarch.jun | D193: Cloud Infrastructure Architect Consultant, junior expertise level | K193: Time | M193: =PS_cloudarch.jun_SEK -> 1277
B194: PS-cloudarch.sen | D194: Cloud Infrastructure Architect Consultant, senior expertise level | K194: Time | M194: =PS_cloudarch.sen_SEK -> 1374
B195: PS-pm.jun | D195: Project Manager, junior expertise level | K195: Time | M195: =PS_pm.jun_SEK -> 1139
B196: PS-pm.sen | D196: Project Manager, senior expertise level | K196: Time | M196: =PS_pm.sen_SEK -> 1374
B199: Utdanninger
B200: Produkt ID | D200: Beskrivelse | G200: Lengde | K200: Lading per | M200: Pris
B201: TRAIN-intro.iaas | D201: Introduktion til "Infrastruktur som tjeneste" | G201: En dag | K201: Mulighet | M201: Forespørsel om tilbud
B202: TRAIN-cxo.strategy | D202: Skystrategi for ledergrupper | G202: En dag | K202: Mulighet | M202: Forespørsel om tilbud
B203: TRAIN-intro.cloud | D203: introduksjon til skybasert infrastrukturteknikk | G203: Fyra dagar | K203: Mulighet | M203: Forespørsel om tilbud
B204: TRAIN-devops.microservices | D204: Moderne DevOps og "microservices" | G204: Fyra dagar | K204: Mulighet | M204: Forespørsel om tilbud
B211: Månedlig kostnad
B214: Alle priser er oppgitt i SEK, eksklusiv mva.
B216: Kontakt Safespring for et fullstendig tilbud
B217: Telefon: 35 68 88 70
B218: sales@safespring.se
B220: Tjeneste | L220: Månedlig kostnad
B221: Safespring Compute | C221: =SUM(C67+C38)&" vCPU" -> 0 vCPU | D221: =SUM(D38+D67)&" GB RAM" -> 0 GB RAM | E221: =SUM(E38)&" GB Disk" -> 0 GB Disk | F221: =SUM(E67)&" GB NVME-Disk" -> 0 GB NVME-Disk | L221: =L76+L84+K67+K38+K91 -> 0
B222: Safespring Storage | L222: =M112 -> 0
B223: Safespring Backup | L223: =M127 -> 0
B225: Totalt | L225: =SUM(O221:O224) -> 0

Sheet SUNET SEK - priser 2020 (hidden)
B5: Priskalkylator 2020-07-02
B8: Kontakta Safespring | D8: Valuta
B9: Telefon: 08-55 10 73 56 | D9: SEK
B10: sales@safespring.se
B15: Safespring Compute
B18: Infrastruktur kan köras med kostnadsfri opensource-licens eller med Windows-licens.
B19: Alla priser är angivna i SEK, exklusive moms.
B20: Instruktioner: Fyll i önskad kvantitet i de färgade fälten.
B23: Instanser med central blocklagring
B24: Produkt ID | C24: Region | D24: vCPU | E24: RAM (GB) | F24: Disk (GB) | G24: Per timme | H24: Per månad | I24: Antal instanser | J24: Windows-licenser | K24: SQL-licenser | M24: Infrastruktur | N24: Licenser
B25: INSTANCE-b.tiny | C25: STO-1 | D25: 1 | E25: 1 | F25: 40 | G25: =H25/720 -> 0 | H25: =D25*IAAS_vcpu_sunet_b_m+E25*IAAS_ram_sunet_b_m+F25*IAAS_ssd_SUNET -> 0 | L25: Instanser | M25: =ROUNDUP(I25*H25,2) -> 0 | N25: =J25*D25*SW_win.ser.201X_SEK+K25*D25*SW_ms.sql.ser_SEK -> 0
B26: INSTANCE-b.small | C26: STO-1 | D26: 1 | E26: 2 | F26: 40 | G26: 0 | H26: 0 | L26: Instanser | M26: =ROUNDUP(I26*H26,2) -> 0 | N26: 0
B27: INSTANCE-b.medium | C27: STO-1 | D27: 2 | E27: 4 | F27: 40 | G27: 0 | H27: 0 | L27: Instanser | M27: 0 | N27: 0
B28: INSTANCE-b.large | C28: STO-1 | D28: 4 | E28: 8 | F28: 40 | G28: 0 | H28: 0 | L28: Instanser | M28: 0 | N28: 0
B29: INSTANCE-b.xlarge | C29: STO-1 | D29: 8 | E29: 16 | F29: 40 | G29: 0 | H29: 0 | L29: Instanser | M29: 0 | N29: 0
B30: INSTANCE-b.2xlarge | C30: STO-1 | D30: 16 | E30: 32 | F30: 40 | G30: 0 | H30: 0 | L30: Instanser | M30: 0 | N30: 0
B31: INSTANCE-m.small | C31: STO-1 | D31: 1 | E31: 4 | F31: 40 | G31: 0 | H31: 0 | L31: Instanser | M31: 0 | N31: 0
B32: INSTANCE-m.medium | C32: STO-1 | D32: 2 | E32: 8 | F32: 40 | G32: 0 | H32: 0 | L32: Instanser | M32: 0 | N32: 0
B33: INSTANCE-m.large | C33: STO-1 | D33: 4 | E33: 16 | F33: 40 | G33: 0 | H33: 0 | L33: Instanser | M33: 0 | N33: 0
B34: INSTANCE-m.xlarge | C34: STO-1 | D34: 8 | E34: 32 | F34: 40 | G34: 0 | H34: 0 | L34: Instanser | M34: 0 | N34: 0
B35: INSTANCE-m.2xlarge | C35: STO-1 | D35: 16 | E35: 65 | F35: 40 | G35: 0 | H35: 0 | L35: Instanser | M35: 0 | N35: 0
B36: Totalt | I36: =SUM(I25:I35)&" st" -> 0 st | J36: =SUM(J25:J35)&" st" -> 0 st | K36: =SUM(K25:K35)&" st" -> 0 st | M36: =SUM(M25:M35) -> 0 | N36: =SUM(N25:N35) -> 0
B39: Instanser med lokal lagring (NVMe-disk)
B40: Produkt ID | C40: Region | D40: vCPU | E40: RAM (GB) | F40: Disk (GB) | G40: Per timme | H40: Per månad | I40: Antal instanser | J40: Windows-licenser | K40: SQL-licenser | M40: Infrastruktur | N40: Licenser
B41: INSTANCE-lb.tiny | C41: STO-1 | D41: 1 | E41: 1 | F41: 10 | G41: =H41/720 -> 0.2013888889 | H41: =D41*IAAS_vcpu_SUNET+E41*IAAS_ram_SUNET+F41*IAAS_nvme_SUNET -> 145 | L41: Instanser | M41: =ROUNDUP(I41*H41,2) -> 0 | N41: =J41*D41*SW_win.ser.201X_SEK+K41*D41*SW_ms.sql.ser_SEK -> 0
B42: INSTANCE-lb.large.1d | C42: STO-1 | D42: 4 | E42: 8 | F42: 250 | G42: =H42/720 -> 1.402777778 | H42: 1010 | L42: Instanser | M42: 0 | N42: 0
B43: INSTANCE-lb.xlarge.1d | C43: STO-1 | D43: 8 | E43: 16 | F43: 250 | G43: 2.458333333 | H43: 1770 | L43: Instanser | M43: 0 | N43: 0
B44: INSTANCE-lb.2xlarge.1d | C44: STO-1 | D44: 16 | E44: 32 | F44: 250 | G44: 4.569444444 | H44: 3290 | L44: Instanser | M44: 0 | N44: 0
B45: INSTANCE-lb.2xlarge.2d | C45: STO-1 | D45: 16 | E45: 32 | F45: 500 | G45: 4.916666667 | H45: 3540 | L45: Instanser | M45: 0 | N45: 0
B46: INSTANCE-lb.2xlarge.4d | C46: STO-1 | D46: 16 | E46: 32 | F46: 1000 | G46: 5.611111111 | H46: 4040 | L46: Instanser | M46: 0 | N46: 0
B47: INSTANCE-lb.4xlarge.1d | C47: STO-1 | D47: 32 | E47: 65 | F47: 250 | G47: 8.868055556 | H47: 6385 | L47: Instanser | M47: 0 | N47: 0
B48: INSTANCE-lb.4xlarge.2d | C48: STO-1 | D48: 32 | E48: 65 | F48: 500 | G48: 9.215277778 | H48: 6635 | L48: Instanser | M48: 0 | N48: 0
B49: INSTANCE-lb.4xlarge.4d | C49: STO-1 | D49: 32 | E49: 65 | F49: 1000 | G49: 9.909722222 | H49: 7135 | L49: Instanser | M49: 0 | N49: 0
B50: INSTANCE-lm.large.1d | C50: STO-1 | D50: 4 | E50: 16 | F50: 250 | G50: 2.013888889 | H50: 1450 | L50: Instanser | M50: 0 | N50: 0
B51: INSTANCE-lm.xlarge.1d | C51: STO-1 | D51: 8 | E51: 32 | F51: 250 | G51: 3.680555556 | H51: 2650 | L51: Instanser | M51: 0 | N51: 0
B52: INSTANCE-lm.xlarge.2d | C52: STO-1 | D52: 8 | E52: 32 | F52: 500 | G52: 4.027777778 | H52: 2900 | L52: Instanser | M52: 0 | N52: 0
B53: INSTANCE-lm.xlarge.4d | C53: STO-1 | D53: 8 | E53: 32 | F53: 1000 | G53: 4.722222222 | H53: 3400 | L53: Instanser | M53: 0 | N53: 0
B54: INSTANCE-lm.2xlarge.1d | C54: STO-1 | D54: 16 | E54: 65 | F54: 250 | G54: 7.090277778 | H54: 5105 | L54: Instanser | M54: 0 | N54: 0
B55: INSTANCE-lm.2xlarge.2d | C55: STO-1 | D55: 16 | E55: 65 | F55: 500 | G55: 7.4375 | H55: 5355 | L55: Instanser | M55: 0 | N55: 0
B56: INSTANCE-lm.2xlarge.4d | C56: STO-1 | D56: 16 | E56: 65 | F56: 1000 | G56: 8.131944444 | H56: 5855 | L56: Instanser | M56: 0 | N56: 0
B57: INSTANCE-lm.4xlarge.1d | C57: STO-1 | D57: 32 | E57: 131 | F57: 250 | G57: 13.90972222 | H57: 10015 | L57: Instanser | M57: 0 | N57: 0
B58: INSTANCE-lm.4xlarge.2d | C58: STO-1 | D58: 32 | E58: 131 | F58: 500 | G58: 14.25694444 | H58: 10265 | L58: Instanser | M58: 0 | N58: 0
B59: INSTANCE-lm.4xlarge.4d | C59: STO-1 | D59: 32 | E59: 131 | F59: 1000 | G59: 14.95138889 | H59: 10765 | L59: Instanser | M59: 0 | N59: 0
B60: Totalt | I60: =SUM(I41:I59)&" st" -> 0 st | J60: =SUM(J41:J59)&" st" -> 0 st | K60: =SUM(K41:K59)&" st" -> 0 st | M60: =SUM(M41:M59) -> 0 | N60: =SUM(N41:N59) -> 0
B63: SUNET Private Cloud
B64: Produkt ID | C64: Region | D64: CPU (p) core | E64: RAM (GB) | F64: Disk (GB) | G64: Per timme | H64: Per månad | I64: Antal instanser | J64: Windows-licenser | K64: SQL-licenser | M64: Infrastruktur | N64: Licenser
B65: lb.tiny | C65: STH-B | D65: 1 | E65: 1 | F65: 10 | G65: =H65/720 -> 0.1875 | H65: =D65*IAAS_vcpu_SUNET+E65*IAAS_ram_SUNET+F65*IAAS_ssd_SUNET -> 135 | L65: Instanser | M65: =ROUNDUP(I65*H65,2) -> 0 | N65: =J65*D65*SW_win.ser.201X_SEK+K65*D65*SW_ms.sql.ser_SEK -> 0
B66: lb.small | C66: STH-B | D66: 1 | E66: 2 | F66: 20 | G66: 0.2638888889 | H66: 190 | L66: Instanser | M66: 0 | N66: 0
B67: lb.medium.1d | C67: STH-B | D67: 2 | E67: 4 | F67: 250 | G67: 0.5277777778 | H67: 380 | L67: Instanser | M67: 0 | N67: 0
B68: lb.large.1d | C68: STH-B | D68: 4 | E68: 8 | F68: 250 | G68: 1.055555556 | H68: 760 | L68: Instanser | M68: 0 | N68: 0
B69: lb.xlarge.1d | C69: STH-B | D69: 8 | E69: 16 | F69: 250 | G69: 2.111111111 | H69: 1520 | L69: Instanser | M69: 0 | N69: 0
B70: lb.2xlarge.1d | C70: STH-B | D70: 16 | E70: 32 | F70: 250 | G70: 4.222222222 | H70: 3040 | L70: Instanser | M70: 0 | N70: 0
B71: lb.2xlarge.2d | C71: STH-B | D71: 16 | E71: 32 | F71: 500 | G71: 4.222222222 | H71: 3040 | L71: Instanser | M71: 0 | N71: 0
B72: lb.2xlarge.4d | C72: STH-B | D72: 16 | E72: 32 | F72: 1000 | G72: 4.222222222 | H72: 3040 | L72: Instanser | M72: 0 | N72: 0
B73: lb.4xlarge.1d | C73: STH-B | D73: 32 | E73: 65 | F73: 250 | G73: 8.520833333 | H73: 6135 | L73: Instanser | M73: 0 | N73: 0
B74: lb.4xlarge.2d | C74: STH-B | D74: 32 | E74: 65 | F74: 500 | G74: 8.520833333 | H74: 6135 | L74: Instanser | M74: 0 | N74: 0
B75: lb.4xlarge.4d | C75: STH-B | D75: 32 | E75: 65 | F75: 1000 | G75: 8.520833333 | H75: 6135 | L75: Instanser | M75: 0 | N75: 0
B76: lm.small | C76: STH-B | D76: 1 | E76: 4 | F76: 20 | G76: 0.4166666667 | H76: 300 | L76: Instanser | M76: 0 | N76: 0
B77: lm.medium.1d | C77: STH-B | D77: 2 | E77: 8 | F77: 250 | G77: 0.8333333333 | H77: 600 | L77: Instanser | M77: 0 | N77: 0
B78: lm.large.1d | C78: STH-B | D78: 4 | E78: 16 | F78: 250 | G78: 1.666666667 | H78: 1200 | L78: Instanser | M78: 0 | N78: 0
B79: lm.xlarge.1d | C79: STH-B | D79: 8 | E79: 32 | F79: 250 | G79: 3.333333333 | H79: 2400 | L79: Instanser | M79: 0 | N79: 0
B80: lm.2xlarge.1d | C80: STH-B | D80: 16 | E80: 65 | F80: 250 | G80: 6.743055556 | H80: 4855 | L80: Instanser | M80: 0 | N80: 0
B81: lm.2xlarge.2d | C81: STH-B | D81: 16 | E81: 65 | F81: 500 | G81: 6.743055556 | H81: 4855 | L81: Instanser | M81: 0 | N81: 0
B82: lm.2xlarge.4d | C82: STH-B | D82: 16 | E82: 65 | F82: 1000 | G82: =H82/720 -> 6.743055556 | H82: 4855 | L82: Instanser | M82: =ROUNDUP(I82*H82,2) -> 0 | N82: 0
B83: lm.4xlarge.1d | C83: STH-B | D83: 32 | E83: 131 | F83: 250 | G83: =H83/720 -> 13.5625 | H83: 9765 | L83: Instanser | M83: 0 | N83: 0
B84: lm.4xlarge.2d | C84: STH-B | D84: 32 | E84: 131 | F84: 500 | G84: 13.5625 | H84: 9765 | L84: Instanser | M84: 0 | N84: 0
B85: lm.4xlarge.4d | C85: STH-B | D85: 32 | E85: 131 | F85: 1000 | G85: 13.5625 | H85: 9765 | L85: Instanser | M85: 0 | N85: 0
B86: Totalt | I86: =SUM(I65:I85)&" st" -> 0 st | J86: =SUM(J65:J85)&" st" -> 0 st | K86: =SUM(K65:K85)&" st" -> 0 st | M86: =SUM(M65:M85) -> 0 | N86: =SUM(N65:N85) -> 0
B89: Bare Metal compute
B90: Produkt ID | C90: CPU (p) core | D90: RAM (GB) | E90: NVME (GB) | G90: Per timme | H90: Per månad | I90: Antal instanser | J90: Windows-licenser | K90: SQL-licenser | M90: Infrastruktur | N90: Licenser
B91: INSTANCE-p1.2xlarge.16d | C91: 16 | D91: 128 | E91: 3800 | G91: =H91/720 -> 9.5 | H91: =INSTANCE_p1.2xlarge.16d_SEK -> 6840 | I91: 0 | J91: 0 | K91: 0 | L91: Instanser | M91: =ROUNDUP(I91*H91,2) -> 0 | N91: =J91*C91*SW_win.ser.201X_SEK+K91*C91*SW_ms.sql.ser_SEK -> 0
B92: INSTANCE-p1.4xlarge.16d | C92: 32 | D92: 256 | E92: 3800 | G92: 19 | H92: =INSTANCE_p1.4xlarge.16d_SEK -> 13680 | I92: 0 | J92: 0 | K92: 0 | L92: =L91 -> Instanser | M92: 0 | N92: =J92*C92*SW_win.ser.201X_SEK+K92*C92*SW_ms.sql.ser_SEK -> 0
B93: INSTANCE-p1.8xlarge.32d | C93: 64 | D93: 512 | E93: 7600 | G93: 38 | H93: =INSTANCE_p1.8xlarge.32d_SEK -> 27360 | I93: 0 | J93: 0 | K93: 0 | L93: Instanser | M93: 0 | N93: =J93*C93*SW_win.ser.201X_SEK+K93*C93*SW_ms.sql.ser_SEK -> 0
B94: Totalt | I94: =SUM(I91:I93)&" st" -> 0 st | J94: =SUM(J91:J93)&" st" -> 0 st | K94: =SUM(K91:K93)&" st" -> 0 st | M94: =SUM(M91:M93) -> 0 | N94: =SUM(N91:N93) -> 0
B97: Extra lagring
B98: Produkt ID | C98: Beskrivning | E98: Per timme | F98: Per GB/månad | J98: Extra GB
B99: VOLUME-large | C99: SSD-backed 3-replica Ceph | E99: =F99/720 -> 0.001666666667 | F99: =VOLUME_large_SEK -> 1.2 | K99: GB | N99: =ROUNDUP(J99*F99,2) -> 0
B100: VOLUME-fast | C100: HDD-backed 3-replica Ceph | E100: =F100/720 -> 0.005 | F100: =VOLUME_fast_SEK -> 3.6 | J100: 0 | K100: GB | N100: =ROUNDUP(J100*F100,2) -> 0
B101: Totalt | J101: =SUM(J99:J100)&" GB" -> 0 GB | N101: =SUM(N99:N100) -> 0
B105: SUNET Lagring i privat molntjänst
B108: Objektlagring med standarden S3.
B109: Prismodell baserat på antal lagrade GB, se tabellen nedan.
B110: Instruktioner: Fyll i önskad kvantitet i de färgade fälten.
B112: Produkt ID | C112: Antal TB | D112: Per GB /månad
B113: S3-storage | C113: <300 | D113: =S3_storage.50_SUNET -> 0.35
B114: S3-storage | C114: >=300 | D114: =S3_storage.100_SUNET -> 0.19
B115: S3-storage | C115: >=1000 | D115: =S3_storage.500_SUNET -> 0.1
B116: S3-storage | C116: >=2000 | D116: =S3_storage.1000_SUNET -> 0.06
B117: S3-storage | C117: 1001 - | D117: =S3_storage.quote_SUNET -> Be om offert
B120: Produkt ID | E120: Per timme | F120: Per GB/månad | H120: Antal TB | K120: Minsta åtagande | N120: Storage
B121: S3-storage | E121: =F121/720 -> 0.0004861111111 | F121: =_xlfn.IFS(H121<=299,D113,H121<1000,D114,H121<2000,D115,H121>=2000,D116) -> 0.35 | H121: 0 | I121: TB | K121: =_xlfn.IFS(H121<=299,"6 månader",H121<1000,"12 månader",H121<2000,"12 månader",H121>=2000,"36 månader") -> 6 månader | M121: =ROUNDUP((H121*1000)*F121,2) -> 0
B122: Totalt | M122: =SUM(M121) -> 0
B126: Safespring Backup
B129: Cloud backup solution for on-prem or cloud servers based on Spectrum Protect.
B130: Alla priser angivna i SEK, exklusive moms.
B131: Instruktioner: Fyll i önskad kvantitet i de färgade fälten.
B133: Produkt ID | C133: Fast månadspris | E133: Per timme | F133: Per GB/månad | H133: Antal GB | J133: Deduplicering* | N133: Pris
B134: BAAS-on.demand ** | D134: N/A | E134: N/A | F134: =BAAS_on.demand_SEK -> 2.45 | H134: 0 | I134: GB | J134: N/A | N134: =ROUNDUP(H134*F134,2) -> 0
B135: BAAS-small **** | D135: 5500 | E135: N/A | F135: =BAAS_small_SEK -> 1.75 | H135: 0 | I135: GB | J135: 0.75 | N135: =IF(H135>0,IF(SUM($D$135+($F$135*((H135*(1-$J$135))-1000)))<=D135,$D$135,$D$135+($F$135*((H135*(1-$J$135))-1000))),0) -> 0
B136: BAAS-large *** | D136: 9500 | E136: N/A | F136: =BAAS_large_SEK -> 0.92 | H136: 0 | I136: GB | J136: 0.75 | N136: =IF(H136>0,$D$136+($F$136*(H136*(1-$J$136))),0) -> 0
B137: Totalt | H137: =SUM(H134:H136)&" GB" -> 0 GB | N137: =SUM(N134:N136) -> 0
B139: * Dedup är en datareduktion som görs i tjänsten. Beroende på data varierar det normalt mellan 45%-90%
B140: ** Priset är per skyddad GB på klienten.
B141: *** Priset är per lagrad GB i tjänsten efter deduplicering och komprimering.
B142: **** Priset är per lagrad GB i tjänsten efter deduplicering och komprimering. Det ingår 1000GB i det fasta månadspriset.
B150: Månadskostnad
B153: Alla priser angivna i SEK, exklusive moms.
B155: Kontakta Safespring för fullständig offert
B156: Telefon: 08-55 10 73 56
B157: sales@safespring.se
B159: Produkt | M159: Månadskostnad
B160: Safespring Compute | M160: =M86+M94+M60+M36+N101 -> 0
B161: Safespring Storage | M161: =M122 -> 0
B162: Safespring Backup | M162: =N137 -> 0
B163: Licenser (Microsoft) | M163: =N86+N94+N60+N36 -> 0
B164: Totalt | J164: =SUM(M160:M163) -> 0
B166: Safespring Compute - Totalt efter avdrag för 12 månaders åtagande | M166: =M160*0.88+M161+M162+M163 -> 0
B167: Safespring Compute - Totalt efter avdrag för 36 månaders åtagade | M167: =M160*0.76+M161+M162+M163 -> 0

Sheet Data (hidden)
B2: Safespring Compute | D2: Prissättning | E2: SEK/NOK | F2: EUR | G2: SUNET med påslag | I2: Currency Factor
B3: IAAS-ram | D3: 55 | E3: =D3*SEK -> 55 | F3: =D3*EUR -> 4.895 | G3: =(D3*(1+Safespring.price.increase))*(1+sunet.price.increase) -> 55 | I3: SEK | K3: 1
B4: IAAS-ssd | D4: 3.6 | E4: 3.6 | F4: =D4*EUR -> 0.3204 | G4: 3.6 | I4: EUR | K4: 0.089
B5: IAAS-vcpu | D5: 80 | E5: 80 | F5: =D5*EUR -> 7.12 | G5: 80 | I5: NOK | K5: 1
B6: IAAS-nvme | D6: 1 | E6: 1 | F6: 0.089 | G6: 1
B7: IAAS-gpu | D7: 5500 | E7: =D7*SEK -> 5500 | F7: =D7*EUR -> 489.5 | G7: 5500
B8: IAAS-pcpu (beräknad) | D8: 2.66 | E8: =D8*IAAS_vcpu_SEK*SEK -> 212.8 | F8: =D8*IAAS_vcpu_SEK*EUR -> 18.9392 | G8: 2.66 | I8: Typ | J8: Antal | K8: Pris
I9: vCPU | K9: =J9*IAAS_vcpu_SEK -> 0
I10: RAM | K10: =J10*IAAS_ram_SEK -> 0
I11: Totalt | K11: =SUM(K9:K10) -> 0
B13: Bare metal compute | D13: Prissättning | E13: SEK | F13: EUR | G13: SUNET
B14: INSTANCE-p1.2xlarge.16d | D14: =INSTANCE_p1.4xlarge.16d_SEK/2 -> 6840 | E14: =D14*SEK -> 6840 | F14: =D14*EUR -> 608.76
B15: INSTANCE-p1.4xlarge.16d | D15: 13680 | E15: 13680 | F15: 1217.52
B16: INSTANCE-p1.8xlarge.32d | D16: =INSTANCE_p1.4xlarge.16d_SEK*2 -> 27360 | E16: 27360 | F16: 2435.04
B18: Safespring Compute | D18: Prissättning | E18: SEK | F18: EUR | G18: SUNET
B19: VOLUME-large | D19: 1.2 | E19: =D19*SEK -> 1.2 | F19: =D19*EUR -> 0.1068 | G19: =(D19*(1+Safespring.price.increase))*(1+sunet.price.increase) -> 1.2
B20: VOLUME-fast | D20: 3.6 | E20: =D20*SEK -> 3.6 | F20: =D20*EUR -> 0.3204 | G20: =(D20*(1+Safespring.price.increase))*(1+sunet.price.increase) -> 3.6
B22: Safespring Backup | D22: Prissättning | E22: SEK | F22: EUR | G22: SUNET
B23: BAAS-on.demand | D23: 2.45 | E23: =D23*SEK -> 2.45 | F23: =D23*EUR -> 0.21805
B24: BAAS-small.fee | D24: 5500 | E24: =D24*SEK -> 5500 | F24: =D24*EUR -> 489.5
B25: BAAS-large.fee | D25: 9500 | E25: 9500 | F25: 845.5
B26: BAAS-small | D26: 1.75 | E26: 1.75 | F26: 0.15575
B27: BAAS-large | D27: 0.92 | E27: =D27*SEK -> 0.92 | F27: =D27*EUR -> 0.08188
B29: Safespring Storage | D29: Prissättning | E29: SEK | F29: EUR | G29: SUNET
B30: S3-storage.50 | D30: 500 | E30: =D30*SEK -> 500 | F30: =D30*EUR -> 44.5 | G30: 0.35
B31: S3-storage.100 | D31: 500 | E31: 500 | F31: 44.5 | G31: 0.19
B32: S3-storage.500 | D32: 500 | E32: 500 | F32: 44.5 | G32: 0.1
B33: S3-storage.1000 | D33: 500 | E33: 500 | F33: 44.5 | G33: 0.06
B34: S3-storage.quote | D34: Be om offert | E34: =D34 -> Be om offert | F34: Request a quote | G34: =S3_storage.quote_SEK -> Be om offert
B35: S3-archive.50 | D35: 350 | E35: =D35*SEK -> 350 | F35: =D35*EUR -> 31.15 | G35: 0.35
B36: S3-archive.100 | D36: 270 | E36: 270 | F36: 24.03 | G36: 0.19
B37: S3-archive.500 | D37: 200 | E37: 200 | F37: 17.8 | G37: 0.1
B38: S3-archive.1000 | D38: 185 | E38: 185 | F38: 16.465 | G38: 0.06
B39: S3-archive.quote | D39: Be om offert | E39: =D39 -> Be om offert | F39: Request a quote | G39: =S3_storage.quote_SEK -> Be om offert
B41: Nätverk | D41: Prissättning | E41: SEK | F41: EUR | G41: SUNET
B42: NET-publicv4 | D42: 25 | E42: =D42*SEK -> 25 | F42: =D42*EUR -> 2.225 | G42: N/A
B43: NET-publicv6 | D43: 0 | E43: 0 | F43: =D43*EUR -> 0 | G43: N/A
B44: NET-ingress | D44: 0 | E44: 0 | F44: 0 | G44: N/A
B45: NET-egress | D45: 0 | E45: 0 | F45: =D45*EUR -> 0 | G45: N/A
B46: NET-mgn.slb | D46: Begär offert | E46: =D46 -> Begär offert | F46: Request a quote | G46: N/A
B47: NET-rdns | D47: 0 | E47: 0 | F47: 0 | G47: N/A
B48: NET-saferoute | D48: Begär offert | E48: =D48 -> Begär offert | F48: Request a quote | G48: =S3_storage.quote_SEK -> Be om offert
B49: NET-byoip | D49: 0 | E49: =D49*SEK -> 0 | F49: =D49*EUR -> 0 | G49: N/A
B51: Mjukvara | D51: Prissättning | E51: SEK | F51: EUR | G51: SUNET
B52: SW-win.ser.2016 & 2019 | D52: 175 | E52: =D52*SEK -> 175 | F52: =D52*EUR -> 15.575 | G52: N/A
B53: SW-ms.sql.ser | D53: 1229 | E53: 1229 | F53: =D53*EUR -> 109.381 | G53: N/A
B54: SW-ms.sql.ser.ent | D54: 4766 | E54: =D54*SEK -> 4766 | F54: =D54*EUR -> 424.174 | G54: N/A
B55: SW-stackn | E55: Begär offert | F55: Request a quote | G55: N/A
B56: SW-nextcloud | E56: Begär offert | F56: Request a quote | G56: N/A
B57: SW-suse | E57: Begär offert | F57: Request a quote | G57: N/A
B58: SW-cluster.control | E58: 3x instanspris | F58: 3x instance price | G58: N/A
B59: SW-backup.ninja | D59: 400 | E59: 400 | F59: =D59*EUR -> 35.6 | G59: N/A
B61: Plattformstjänster | D61: Prissättning | E61: SEK | F61: EUR | G61: SUNET
B62: PAAS-man.kubernetes24 | D62: Begär offert | E62: Begär offert | F62: Requests for quotation | G62: N/A
B63: PAAS-man.kubernetes8 | D63: Begär offert | E63: Begär offert | F63: Requests for quotation | G63: N/A
B64: PAAS-man.elasticsearch | E64: Begär offert | F64: Requests for quotation | G64: N/A
B65: PAAS-man.redis | E65: Begär offert | F65: Requests for quotation | G65: N/A
B66: PAAS-man.nats | E66: Begär offert | F66: Requests for quotation | G66: N/A
B67: PAAS-man.mariadb | E67: Begär offert | F67: Requests for quotation | G67: N/A
B68: PAAS-openshift | D68: 0 | E68: Begär offert | F68: Requests for quotation | G68: N/A
B70: Konsulttjänster | D70: Prissättning | E70: SEK | F70: EUR | G70: SUNET
B71: PS-consult.jun | D71: 1127 | E71: =D71*SEK -> 1127 | F71: =D71*EUR -> 100.303 | G71: N/A
B72: PS-consult.sen | D72: 1374 | E72: =D72*SEK -> 1374 | F72: 122.286 | G72: N/A
B73: PS-cloudarch.jun | D73: 1277 | E73: 1277 | F73: 113.653 | G73: N/A
B74: PS-cloudarch.sen | D74: 1374 | E74: 1374 | F74: 122.286 | G74: N/A
B75: PS-pm.jun | D75: 1139 | E75: 1139 | F75: 101.371 | G75: N/A
B76: PS-pm.sen | D76: 1374 | E76: 1374 | F76: 122.286 | G76: N/A
